Workbook

Sheet DIssolution
E1: AGG Balance | F1: =INDIRECT("R"&ROW(F5)+COUNTA(Dissolution[[#All],[AGG Bal]])-1&"C"&COLUMN(F5),FALSE) -> 1952.07
E2: New Company | F2: =F1-F3 -> 1301.38
E3: Hal Adams | F3: =ROUND(1/3*F1,2) -> 650.69
A5: Date | B5: Description | C5: Amount | D5: Running Bal. | E5: Category | F5: AGG Bal | G5: Column3 | H5: Who | I5: Bill to | J5: Subject | K5: Column1 | L5: Expense Report? | M5: Invoice | N5: Charge Receipt
A6: 2022-01-01 | B6: Beginning balance as of 01/01/2022 | D6: 663.71 | E6: Beginning Balance | F6: =IF(Dissolution[[#This Row],[Category]]="Beginning Balance",Dissolution[[#This Row],[Running Bal.]],IF(Dissolution[[#This Row],[Category]]="AGG",F5+Dissolution[[#This Row],[Amount]],OFFSET(F6,-1,0))) -> 663.71 | H6: =IFERROR(INDEX([1]Lookup!$B$2:$C$5,MATCH(RIGHT(TRIM(Dissolution[[#This Row],[Description]]),4),[1]Lookup!$B$2:$B$5,0),2),"") -> 
A7: 2022-01-03 | B7: OWL FOR THUNDERBI 01/02 PURCHASE WIESBADEN DEBIT CARD *7429 | C7: -11.38 | D7: =D6+Dissolution[[#This Row],[Amount]] -> 652.33 | E7: AGG | F7: =IF(Dissolution[[#This Row],[Category]]="Beginning Balance",Dissolution[[#This Row],[Running Bal.]],IF(Dissolution[[#This Row],[Category]]="AGG",F6+Dissolution[[#This Row],[Amount]],OFFSET(F7,-1,0))) -> 652.33 | H7: =IFERROR(INDEX([1]Lookup!$B$2:$C$5,MATCH(RIGHT(TRIM(Dissolution[[#This Row],[Description]]),4),[1]Lookup!$B$2:$B$5,0),2),"") -> FWC | I7: AGG | J7: Outlook | L7: 221226 - FWC ER Mastercard EOY-2022 | M7: - | N7: 220102 - OWL invoice 3-47107.pdf
A8: 2022-01-03 | B8: Monthly Fee Business Adv Relationship | C8: -29.95 | D8: =D7+Dissolution[[#This Row],[Amount]] -> 622.38 | E8: AGG | F8: =IF(Dissolution[[#This Row],[Category]]="Beginning Balance",Dissolution[[#This Row],[Running Bal.]],IF(Dissolution[[#This Row],[Category]]="AGG",F7+Dissolution[[#This Row],[Amount]],OFFSET(F8,-1,0))) -> 622.38 | H8: =IFERROR(INDEX([1]Lookup!$B$2:$C$5,MATCH(RIGHT(TRIM(Dissolution[[#This Row],[Description]]),4),[1]Lookup!$B$2:$B$5,0),2),"") ->  | I8: AGG | M8: -
A9: 2022-01-03 | B9: INTERNATIONAL TRANSACTION FEE 01/02 OWL FOR THUNDERBI WIESBADEN DEBIT CARD *7429 | C9: -0.34 | D9: =D8+Dissolution[[#This Row],[Amount]] -> 622.04 | E9: AGG | F9: =IF(Dissolution[[#This Row],[Category]]="Beginning Balance",Dissolution[[#This Row],[Running Bal.]],IF(Dissolution[[#This Row],[Category]]="AGG",F8+Dissolution[[#This Row],[Amount]],OFFSET(F9,-1,0))) -> 622.04 | H9: =IFERROR(INDEX([1]Lookup!$B$2:$C$5,MATCH(RIGHT(TRIM(Dissolution[[#This Row],[Description]]),4),[1]Lookup!$B$2:$B$5,0),2),"") -> FWC | I9: AGG | J9: Outlook | L9: 221226 - FWC ER Mastercard EOY-2022 | M9: - | N9: =TEXT(Dissolution[[#This Row],[Date]],"YYMMDD")&" - Intl Transaction Fee - "&LEFT(RIGHT(Dissolution[[#This Row],[Description]],LEN(Dissolution[[#This Row],[Description]])-LEN("international transaction fee xx/xx ")),SEARCH("DEBIT",RIGHT(Dissolution[[#This Row],[Description]],LEN(Dissolution[[#This Row],[Description]])-LEN("international transaction fee xx/xx xx"))))&".pdf" -> 220103 - Intl Transaction Fee - OWL FOR THUNDERBI WIESBADEN.pdf
A10: 2022-01-19 | B10: MAILCHIMP *MISC 01/18 PURCHASE MAILCHIMP.COM GA DEBIT CARD *7411 | C10: -9.49 | D10: =D9+Dissolution[[#This Row],[Amount]] -> 612.55 | E10: AGG | F10: =IF(Dissolution[[#This Row],[Category]]="Beginning Balance",Dissolution[[#This Row],[Running Bal.]],IF(Dissolution[[#This Row],[Category]]="AGG",F9+Dissolution[[#This Row],[Amount]],OFFSET(F10,-1,0))) -> 612.55 | H10: =IFERROR(INDEX([1]Lookup!$B$2:$C$5,MATCH(RIGHT(TRIM(Dissolution[[#This Row],[Description]]),4),[1]Lookup!$B$2:$B$5,0),2),"") -> LRC | I10: AGG | J10: Mailchimp | L10: 220310 - LRC ADS_BG ER MasterCard 04-2022 | M10: - | N10: 220118 - AGG - Mailchimp Essentials MC14760854.pdf
A11: 2022-01-20 | B11: MailChimp 01/20 PURCHASE Atlanta GA DEBIT CARD *7411 | C11: -47.69 | D11: =D10+Dissolution[[#This Row],[Amount]] -> 564.86 | E11: AGG | F11: =IF(Dissolution[[#This Row],[Category]]="Beginning Balance",Dissolution[[#This Row],[Running Bal.]],IF(Dissolution[[#This Row],[Category]]="AGG",F10+Dissolution[[#This Row],[Amount]],OFFSET(F11,-1,0))) -> 564.86 | H11: =IFERROR(INDEX([1]Lookup!$B$2:$C$5,MATCH(RIGHT(TRIM(Dissolution[[#This Row],[Description]]),4),[1]Lookup!$B$2:$B$5,0),2),"") -> LRC | I11: Peregrine | J11: Mailchimp | L11: 220310 - LRC ADS_BG ER MasterCard Peregrine Billable 03-2022 | M11: 005-22 | N11: 220120 - Peregrine - Mailchimp Essentials MC14777938.pdf
A12: 2022-01-24 | B12: PEREGRINE AVIONI DES:QUICKBOOKS ID:375020979 INDN:AVIAGLOBAL GROUP, LLC CO ID:1722616653 PPD | C12: 1500 | D12: =D11+Dissolution[[#This Row],[Amount]] -> 2064.86 | E12: AGG | F12: =IF(Dissolution[[#This Row],[Category]]="Beginning Balance",Dissolution[[#This Row],[Running Bal.]],IF(Dissolution[[#This Row],[Category]]="AGG",F11+Dissolution[[#This Row],[Amount]],OFFSET(F12,-1,0))) -> 2064.86 | H12: =IFERROR(INDEX([1]Lookup!$B$2:$C$5,MATCH(RIGHT(TRIM(Dissolution[[#This Row],[Description]]),4),[1]Lookup!$B$2:$B$5,0),2),"") ->  | I12: Peregrine
A13: 2022-01-24 | B13: SOFTACULOUS 01/24 PURCHASE ABU DHABI DEBIT CARD *7429 | C13: -24 | D13: =D12+Dissolution[[#This Row],[Amount]] -> 2040.86 | E13: AGG | F13: =IF(Dissolution[[#This Row],[Category]]="Beginning Balance",Dissolution[[#This Row],[Running Bal.]],IF(Dissolution[[#This Row],[Category]]="AGG",F12+Dissolution[[#This Row],[Amount]],OFFSET(F13,-1,0))) -> 2040.86 | H13: =IFERROR(INDEX([1]Lookup!$B$2:$C$5,MATCH(RIGHT(TRIM(Dissolution[[#This Row],[Description]]),4),[1]Lookup!$B$2:$B$5,0),2),"") -> FWC | I13: Peregrine | J13: Security | L13: 221221 - FWC ER Peregrine Billable 1Q22 | M13: 020-22 | N13: 220124 - Softaculous Loginizer 783150.pdf
A14: 2022-01-24 | B14: ELEMENTOR 01/24 PURCHASE WILMINGTON DE DEBIT CARD *7429 | C14: -49 | D14: =D13+Dissolution[[#This Row],[Amount]] -> 1991.86 | E14: AGG | F14: =IF(Dissolution[[#This Row],[Category]]="Beginning Balance",Dissolution[[#This Row],[Running Bal.]],IF(Dissolution[[#This Row],[Category]]="AGG",F13+Dissolution[[#This Row],[Amount]],OFFSET(F14,-1,0))) -> 1991.86 | H14: =IFERROR(INDEX([1]Lookup!$B$2:$C$5,MATCH(RIGHT(TRIM(Dissolution[[#This Row],[Description]]),4),[1]Lookup!$B$2:$B$5,0),2),"") -> FWC | I14: Peregrine | J14: CMS Editor | L14: 221221 - FWC ER Peregrine Billable 1Q22 | M14: 020-22 | N14: 220124 - Elementor Pro.pdf
A15: 2022-01-24 | B15: INTERNATIONAL TRANSACTION FEE 01/24 SOFTACULOUS ABU DHABI DEBIT CARD *7429 | C15: -0.72 | D15: =D14+Dissolution[[#This Row],[Amount]] -> 1991.14 | E15: AGG | F15: =IF(Dissolution[[#This Row],[Category]]="Beginning Balance",Dissolution[[#This Row],[Running Bal.]],IF(Dissolution[[#This Row],[Category]]="AGG",F14+Dissolution[[#This Row],[Amount]],OFFSET(F15,-1,0))) -> 1991.14 | H15: =IFERROR(INDEX([1]Lookup!$B$2:$C$5,MATCH(RIGHT(TRIM(Dissolution[[#This Row],[Description]]),4),[1]Lookup!$B$2:$B$5,0),2),"") -> FWC | I15: Peregrine | J15: Fee | L15: 221221 - FWC ER Peregrine Billable 1Q22 | M15: 020-22 | N15: =TEXT(Dissolution[[#This Row],[Date]],"YYMMDD")&" - Intl Transaction Fee - "&LEFT(RIGHT(Dissolution[[#This Row],[Description]],LEN(Dissolution[[#This Row],[Description]])-LEN("international transaction fee xx/xx ")),SEARCH("DEBIT",RIGHT(Dissolution[[#This Row],[Description]],LEN(Dissolution[[#This Row],[Description]])-LEN("international transaction fee xx/xx xx"))))&".pdf" -> 220124 - Intl Transaction Fee - SOFTACULOUS ABU DHABI.pdf
A16: 2022-01-25 | B16: REALLY-SIMPLE-SSL 01/24 PURCHASE GRONINGEN DEBIT CARD *7429 | C16: -23.2 | D16: =D15+Dissolution[[#This Row],[Amount]] -> 1967.94 | E16: AGG | F16: =IF(Dissolution[[#This Row],[Category]]="Beginning Balance",Dissolution[[#This Row],[Running Bal.]],IF(Dissolution[[#This Row],[Category]]="AGG",F15+Dissolution[[#This Row],[Amount]],OFFSET(F16,-1,0))) -> 1967.94 | H16: =IFERROR(INDEX([1]Lookup!$B$2:$C$5,MATCH(RIGHT(TRIM(Dissolution[[#This Row],[Description]]),4),[1]Lookup!$B$2:$B$5,0),2),"") -> FWC | I16: Peregrine | J16: SSL Cert Manager | L16: 221221 - FWC ER Peregrine Billable 1Q22 | M16: 020-22 | N16: 220124 - Really Simple SSL 2022-1993.pdf
A17: 2022-01-25 | B17: COMPLIANZ-GDPR-PR 01/25 PURCHASE GRONINGEN DEBIT CARD *7429 | C17: -45 | D17: =D16+Dissolution[[#This Row],[Amount]] -> 1922.94 | E17: AGG | F17: =IF(Dissolution[[#This Row],[Category]]="Beginning Balance",Dissolution[[#This Row],[Running Bal.]],IF(Dissolution[[#This Row],[Category]]="AGG",F16+Dissolution[[#This Row],[Amount]],OFFSET(F17,-1,0))) -> 1922.94 | H17: =IFERROR(INDEX([1]Lookup!$B$2:$C$5,MATCH(RIGHT(TRIM(Dissolution[[#This Row],[Description]]),4),[1]Lookup!$B$2:$B$5,0),2),"") -> FWC | I17: Peregrine | J17: Privacy Compliance | L17: 221221 - FWC ER Peregrine Billable 1Q22 | M17: 020-22 | N17: 220125 - Complianz 2022-0745.pdf
A18: 2022-01-25 | B18: INTERNATIONAL TRANSACTION FEE 01/25 COMPLIANZ-GDPR-PR GRONINGEN DEBIT CARD *7429 | C18: -1.35 | D18: =D17+Dissolution[[#This Row],[Amount]] -> 1921.59 | E18: AGG | F18: =IF(Dissolution[[#This Row],[Category]]="Beginning Balance",Dissolution[[#This Row],[Running Bal.]],IF(Dissolution[[#This Row],[Category]]="AGG",F17+Dissolution[[#This Row],[Amount]],OFFSET(F18,-1,0))) -> 1921.59 | H18: =IFERROR(INDEX([1]Lookup!$B$2:$C$5,MATCH(RIGHT(TRIM(Dissolution[[#This Row],[Description]]),4),[1]Lookup!$B$2:$B$5,0),2),"") -> FWC | I18: Peregrine | J18: Fee | L18: 221221 - FWC ER Peregrine Billable 1Q22 | M18: 020-22 | N18: =TEXT(Dissolution[[#This Row],[Date]],"YYMMDD")&" - Intl Transaction Fee - "&LEFT(RIGHT(Dissolution[[#This Row],[Description]],LEN(Dissolution[[#This Row],[Description]])-LEN("international transaction fee xx/xx ")),SEARCH("DEBIT",RIGHT(Dissolution[[#This Row],[Description]],LEN(Dissolution[[#This Row],[Description]])-LEN("international transaction fee xx/xx xx"))))&".pdf" -> 220125 - Intl Transaction Fee - COMPLIANZ-GDPR-PR GRONINGEN.pdf
A19: 2022-01-25 | B19: INTERNATIONAL TRANSACTION FEE 01/24 REALLY-SIMPLE-SSL GRONINGEN DEBIT CARD *7429 | C19: -0.7 | D19: =D18+Dissolution[[#This Row],[Amount]] -> 1920.89 | E19: AGG | F19: =IF(Dissolution[[#This Row],[Category]]="Beginning Balance",Dissolution[[#This Row],[Running Bal.]],IF(Dissolution[[#This Row],[Category]]="AGG",F18+Dissolution[[#This Row],[Amount]],OFFSET(F19,-1,0))) -> 1920.89 | H19: =IFERROR(INDEX([1]Lookup!$B$2:$C$5,MATCH(RIGHT(TRIM(Dissolution[[#This Row],[Description]]),4),[1]Lookup!$B$2:$B$5,0),2),"") -> FWC | I19: Peregrine | J19: Fee | L19: 221221 - FWC ER Peregrine Billable 1Q22 | M19: 020-22 | N19: =TEXT(Dissolution[[#This Row],[Date]],"YYMMDD")&" - Intl Transaction Fee - "&LEFT(RIGHT(Dissolution[[#This Row],[Description]],LEN(Dissolution[[#This Row],[Description]])-LEN("international transaction fee xx/xx ")),SEARCH("DEBIT",RIGHT(Dissolution[[#This Row],[Description]],LEN(Dissolution[[#This Row],[Description]])-LEN("international transaction fee xx/xx xx"))))&".pdf" -> 220125 - Intl Transaction Fee - REALLY-SIMPLE-SSL GRONINGEN.pdf
A20: 2022-01-26 | B20: BLS*Single Card 01/25 PURCHASE 972547584908 DEBIT CARD *7411 | C20: -6.99 | D20: =D19+Dissolution[[#This Row],[Amount]] -> 1913.9 | E20: AGG | F20: =IF(Dissolution[[#This Row],[Category]]="Beginning Balance",Dissolution[[#This Row],[Running Bal.]],IF(Dissolution[[#This Row],[Category]]="AGG",F19+Dissolution[[#This Row],[Amount]],OFFSET(F20,-1,0))) -> 1913.9 | H20: =IFERROR(INDEX([1]Lookup!$B$2:$C$5,MATCH(RIGHT(TRIM(Dissolution[[#This Row],[Description]]),4),[1]Lookup!$B$2:$B$5,0),2),"") -> LRC | I20: AGG | L20: 220310 - LRC ADS_BG ER MasterCard 04-2022 | M20: - | N20: 220125 - Clear Coast Greetings Island 341592115.pdf
A21: 2022-01-26 | B21: INTERNATIONAL TRANSACTION FEE 01/25 BLS*Single Card 972547584908 DEBIT CARD *7411 | C21: -0.21 | D21: =D20+Dissolution[[#This Row],[Amount]] -> 1913.69 | E21: AGG | F21: =IF(Dissolution[[#This Row],[Category]]="Beginning Balance",Dissolution[[#This Row],[Running Bal.]],IF(Dissolution[[#This Row],[Category]]="AGG",F20+Dissolution[[#This Row],[Amount]],OFFSET(F21,-1,0))) -> 1913.69 | H21: =IFERROR(INDEX([1]Lookup!$B$2:$C$5,MATCH(RIGHT(TRIM(Dissolution[[#This Row],[Description]]),4),[1]Lookup!$B$2:$B$5,0),2),"") -> LRC | I21: AGG | L21: 220310 - LRC ADS_BG ER MasterCard 04-2022 | M21: - | N21: 220125 - Clear Coast Greetings Island 341592115.pdf
A22: 2022-02-01 | B22: Monthly Fee Business Adv Relationship | C22: -29.95 | D22: =D21+Dissolution[[#This Row],[Amount]] -> 1883.74 | E22: AGG | F22: =IF(Dissolution[[#This Row],[Category]]="Beginning Balance",Dissolution[[#This Row],[Running Bal.]],IF(Dissolution[[#This Row],[Category]]="AGG",F21+Dissolution[[#This Row],[Amount]],OFFSET(F22,-1,0))) -> 1883.74 | H22: =IFERROR(INDEX([1]Lookup!$B$2:$C$5,MATCH(RIGHT(TRIM(Dissolution[[#This Row],[Description]]),4),[1]Lookup!$B$2:$B$5,0),2),"") ->  | I22: AGG | M22: -
A23: 2022-02-07 | B23: INMOTIONHOSTING.C 02/06 PURCHASE 888-3214678 CA DEBIT CARD *7429 | C23: -37.18 | D23: =D22+Dissolution[[#This Row],[Amount]] -> 1846.56 | E23: AGG | F23: =IF(Dissolution[[#This Row],[Category]]="Beginning Balance",Dissolution[[#This Row],[Running Bal.]],IF(Dissolution[[#This Row],[Category]]="AGG",F22+Dissolution[[#This Row],[Amount]],OFFSET(F23,-1,0))) -> 1846.56 | H23: =IFERROR(INDEX([1]Lookup!$B$2:$C$5,MATCH(RIGHT(TRIM(Dissolution[[#This Row],[Description]]),4),[1]Lookup!$B$2:$B$5,0),2),"") -> FWC | I23: AGG | J23: Domain | L23: 221226 - FWC ER Mastercard EOY-2022 | M23: - | N23: 220220 - InMotion Hosting - IMH-314-144898-87.pdf
A24: 2022-02-14 | B24: JET NET 02/10 PURCHASE 315-797-4420 NY DEBIT CARD *7411 | C24: -850 | D24: =D23+Dissolution[[#This Row],[Amount]] -> 996.56 | E24: AGG | F24: =IF(Dissolution[[#This Row],[Category]]="Beginning Balance",Dissolution[[#This Row],[Running Bal.]],IF(Dissolution[[#This Row],[Category]]="AGG",F23+Dissolution[[#This Row],[Amount]],OFFSET(F24,-1,0))) -> 996.56 | H24: =IFERROR(INDEX([1]Lookup!$B$2:$C$5,MATCH(RIGHT(TRIM(Dissolution[[#This Row],[Description]]),4),[1]Lookup!$B$2:$B$5,0),2),"") -> LRC | I24: Peregrine | L24: 220211 ‐ LRC ADS_BG ER MasterCard Peregrine Billable 02a‐2022 | M24: 003-22 | N24: Executed Custom Special Report Project Agreement AviaGlobal Group LLC[84].pdf
A25: 2022-02-18 | B25: PEREGRINE AVIONI DES:QUICKBOOKS ID:375020979 INDN:AVIAGLOBAL GROUP, LLC CO ID:1722616653 PPD | C25: 1500 | D25: =D24+Dissolution[[#This Row],[Amount]] -> 2496.56 | E25: AGG | F25: =IF(Dissolution[[#This Row],[Category]]="Beginning Balance",Dissolution[[#This Row],[Running Bal.]],IF(Dissolution[[#This Row],[Category]]="AGG",F24+Dissolution[[#This Row],[Amount]],OFFSET(F25,-1,0))) -> 2496.56 | H25: =IFERROR(INDEX([1]Lookup!$B$2:$C$5,MATCH(RIGHT(TRIM(Dissolution[[#This Row],[Description]]),4),[1]Lookup!$B$2:$B$5,0),2),"") ->  | I25: Peregrine
A26: 2022-02-22 | B26: MailChimp 02/20 PURCHASE Atlanta GA DEBIT CARD *7411 | C26: -59 | D26: =D25+Dissolution[[#This Row],[Amount]] -> 2437.56 | E26: AGG | F26: =IF(Dissolution[[#This Row],[Category]]="Beginning Balance",Dissolution[[#This Row],[Running Bal.]],IF(Dissolution[[#This Row],[Category]]="AGG",F25+Dissolution[[#This Row],[Amount]],OFFSET(F26,-1,0))) -> 2437.56 | H26: =IFERROR(INDEX([1]Lookup!$B$2:$C$5,MATCH(RIGHT(TRIM(Dissolution[[#This Row],[Description]]),4),[1]Lookup!$B$2:$B$5,0),2),"") -> LRC | I26: Peregrine | J26: Mailchimp | L26: 220310 - LRC ADS_BG ER MasterCard Peregrine Billable 03-2022 | M26: 005-22 | N26: 220220 - Peregrine - Mailchimp Essentials MC15026518.pdf
A27: 2022-02-22 | B27: MAILCHIMP *MISC 02/18 PURCHASE MAILCHIMP.COM GA DEBIT CARD *7411 | C27: -11.62 | D27: =D26+Dissolution[[#This Row],[Amount]] -> 2425.94 | E27: AGG | F27: =IF(Dissolution[[#This Row],[Category]]="Beginning Balance",Dissolution[[#This Row],[Running Bal.]],IF(Dissolution[[#This Row],[Category]]="AGG",F26+Dissolution[[#This Row],[Amount]],OFFSET(F27,-1,0))) -> 2425.94 | H27: =IFERROR(INDEX([1]Lookup!$B$2:$C$5,MATCH(RIGHT(TRIM(Dissolution[[#This Row],[Description]]),4),[1]Lookup!$B$2:$B$5,0),2),"") -> LRC | I27: AGG | J27: Mailchimp | L27: 220310 - LRC ADS_BG ER MasterCard 04-2022 | M27: - | N27: 220218 - AGG - Mailchimp Essentials MC15010226.pdf
A28: 2022-03-01 | B28: Monthly Fee Business Adv Relationship | C28: -29.95 | D28: =D27+Dissolution[[#This Row],[Amount]] -> 2395.99 | E28: AGG | F28: =IF(Dissolution[[#This Row],[Category]]="Beginning Balance",Dissolution[[#This Row],[Running Bal.]],IF(Dissolution[[#This Row],[Category]]="AGG",F27+Dissolution[[#This Row],[Amount]],OFFSET(F28,-1,0))) -> 2395.99 | H28: =IFERROR(INDEX([1]Lookup!$B$2:$C$5,MATCH(RIGHT(TRIM(Dissolution[[#This Row],[Description]]),4),[1]Lookup!$B$2:$B$5,0),2),"") ->  | I28: AGG | M28: -
A29: 2022-03-15 | B29: Amazon.com*1N91P5 03/14 PURCHASE Amzn.com/bill WA DEBIT CARD *7411 | C29: -66.66 | D29: =D28+Dissolution[[#This Row],[Amount]] -> 2329.33 | E29: AGG | F29: =IF(Dissolution[[#This Row],[Category]]="Beginning Balance",Dissolution[[#This Row],[Running Bal.]],IF(Dissolution[[#This Row],[Category]]="AGG",F28+Dissolution[[#This Row],[Amount]],OFFSET(F29,-1,0))) -> 2329.33 | H29: =IFERROR(INDEX([1]Lookup!$B$2:$C$5,MATCH(RIGHT(TRIM(Dissolution[[#This Row],[Description]]),4),[1]Lookup!$B$2:$B$5,0),2),"") -> LRC | I29: Peregrine | L29: 220310 - LRC ADS_BG ER MasterCard Peregrine Billable 03-2022 | M29: 006-22 | N29: Amazon.com - Order 111-7793024-7025007.pdf
A30: 2022-03-15 | B30: STAMPS.COM 03/14 PURCHASE 855-608-2677 CA DEBIT CARD *7411 | C30: -30.12 | D30: =D29+Dissolution[[#This Row],[Amount]] -> 2299.21 | E30: AGG | F30: =IF(Dissolution[[#This Row],[Category]]="Beginning Balance",Dissolution[[#This Row],[Running Bal.]],IF(Dissolution[[#This Row],[Category]]="AGG",F29+Dissolution[[#This Row],[Amount]],OFFSET(F30,-1,0))) -> 2299.21 | H30: =IFERROR(INDEX([1]Lookup!$B$2:$C$5,MATCH(RIGHT(TRIM(Dissolution[[#This Row],[Description]]),4),[1]Lookup!$B$2:$B$5,0),2),"") -> LRC | I30: Peregrine | J30: Stamps | L30: 220310 - LRC ADS_BG ER MasterCard Peregrine Billable 03-2022 | M30: 006-22 | N30: Stamps dot com st2385760.pdf
A31: 2022-03-15 | B31: STAMPS.COM 03/14 PURCHASE 855-608-2677 CA DEBIT CARD *7411 | C31: -19.19 | D31: =D30+Dissolution[[#This Row],[Amount]] -> 2280.02 | E31: AGG | F31: =IF(Dissolution[[#This Row],[Category]]="Beginning Balance",Dissolution[[#This Row],[Running Bal.]],IF(Dissolution[[#This Row],[Category]]="AGG",F30+Dissolution[[#This Row],[Amount]],OFFSET(F31,-1,0))) -> 2280.02 | H31: =IFERROR(INDEX([1]Lookup!$B$2:$C$5,MATCH(RIGHT(TRIM(Dissolution[[#This Row],[Description]]),4),[1]Lookup!$B$2:$B$5,0),2),"") -> LRC | I31: AGG | J31: Stamps | L31: 220322 ‐ LRC ADS_BG ER MasterCard 07‐2022 | M31: - | N31: Stamps dot com st2385037.pdf
A32: 2022-03-15 | B32: TRANSFER AVIAGLOBAL GROUP, LL:ADS-B Global LLC Confirmation# 1737069000 | C32: -74.1 | D32: =D31+Dissolution[[#This Row],[Amount]] -> 2205.92 | E32: AGG | F32: =IF(Dissolution[[#This Row],[Category]]="Beginning Balance",Dissolution[[#This Row],[Running Bal.]],IF(Dissolution[[#This Row],[Category]]="AGG",F31+Dissolution[[#This Row],[Amount]],OFFSET(F32,-1,0))) -> 2205.92 | H32: =IFERROR(INDEX([1]Lookup!$B$2:$C$5,MATCH(RIGHT(TRIM(Dissolution[[#This Row],[Description]]),4),[1]Lookup!$B$2:$B$5,0),2),"") -> 
A33: 2022-03-16 | B33: MONSTERINSIGHTS W 03/16 PURCHASE PALM BEACH GA FL DEBIT CARD *7429 | C33: -199 | D33: =D32+Dissolution[[#This Row],[Amount]] -> 2006.92 | E33: AGG | F33: =IF(Dissolution[[#This Row],[Category]]="Beginning Balance",Dissolution[[#This Row],[Running Bal.]],IF(Dissolution[[#This Row],[Category]]="AGG",F32+Dissolution[[#This Row],[Amount]],OFFSET(F33,-1,0))) -> 2006.92 | H33: =IFERROR(INDEX([1]Lookup!$B$2:$C$5,MATCH(RIGHT(TRIM(Dissolution[[#This Row],[Description]]),4),[1]Lookup!$B$2:$B$5,0),2),"") -> FWC | I33: Peregrine | J33: Web Traffic | L33: 221221 - FWC ER Peregrine Billable 1Q22 | M33: 020-22 | N33: 220316 - Monster Insights Invoice 543619.pdf
A34: 2022-03-16 | B34: SEMPER PLUGINS AI 03/16 PURCHASE PALM BEACH GA FL DEBIT CARD *7429 | C34: -99 | D34: =D33+Dissolution[[#This Row],[Amount]] -> 1907.92 | E34: AGG | F34: =IF(Dissolution[[#This Row],[Category]]="Beginning Balance",Dissolution[[#This Row],[Running Bal.]],IF(Dissolution[[#This Row],[Category]]="AGG",F33+Dissolution[[#This Row],[Amount]],OFFSET(F34,-1,0))) -> 1907.92 | H34: =IFERROR(INDEX([1]Lookup!$B$2:$C$5,MATCH(RIGHT(TRIM(Dissolution[[#This Row],[Description]]),4),[1]Lookup!$B$2:$B$5,0),2),"") -> FWC | I34: Peregrine | J34: SEO Plugin | L34: 221221 - FWC ER Peregrine Billable 1Q22 | M34: 020-22 | N34: 220315 - aioseo Invoice 80192.pdf
A35: 2022-03-16 | B35: External transfer fee - 3 Day - 03/15/2022 Confirmation: 379444042 | C35: -1 | D35: =D34+Dissolution[[#This Row],[Amount]] -> 1906.92 | E35: AGG | F35: =IF(Dissolution[[#This Row],[Category]]="Beginning Balance",Dissolution[[#This Row],[Running Bal.]],IF(Dissolution[[#This Row],[Category]]="AGG",F34+Dissolution[[#This Row],[Amount]],OFFSET(F35,-1,0))) -> 1906.92 | H35: FWC | I35: AGG | L35: 221226 - FWC ER Mastercard EOY-2022 | M35: -
A36: 2022-03-17 | B36: PEREGRINE AVIONI DES:QUICKBOOKS ID:375020979 INDN:AVIAGLOBAL GROUP, LLC CO ID:1722616653 PPD | C36: 3850 | D36: =D35+Dissolution[[#This Row],[Amount]] -> 5756.92 | E36: AGG | F36: =IF(Dissolution[[#This Row],[Category]]="Beginning Balance",Dissolution[[#This Row],[Running Bal.]],IF(Dissolution[[#This Row],[Category]]="AGG",F35+Dissolution[[#This Row],[Amount]],OFFSET(F36,-1,0))) -> 5756.92 | H36: =IFERROR(INDEX([1]Lookup!$B$2:$C$5,MATCH(RIGHT(TRIM(Dissolution[[#This Row],[Description]]),4),[1]Lookup!$B$2:$B$5,0),2),"") ->  | I36: Peregrine
A37: 2022-03-18 | B37: USPS STAMPS ENDIC 03/17 PURCHASE 888-434-0055 DC DEBIT CARD *7411 | C37: -100 | D37: =D36+Dissolution[[#This Row],[Amount]] -> 5656.92 | E37: AGG | F37: =IF(Dissolution[[#This Row],[Category]]="Beginning Balance",Dissolution[[#This Row],[Running Bal.]],IF(Dissolution[[#This Row],[Category]]="AGG",F36+Dissolution[[#This Row],[Amount]],OFFSET(F37,-1,0))) -> 5656.92 | H37: =IFERROR(INDEX([1]Lookup!$B$2:$C$5,MATCH(RIGHT(TRIM(Dissolution[[#This Row],[Description]]),4),[1]Lookup!$B$2:$B$5,0),2),"") -> LRC | I37: Peregrine | J37: Stamps | L37: 220310 - LRC ADS_BG ER MasterCard Peregrine Billable 03-2022 | M37: 006-22 | N37: Stamps dot com Postage orders.pdf
A38: 2022-03-18 | B38: USPS STAMPS ENDIC 03/17 PURCHASE 888-434-0055 DC DEBIT CARD *7411 | C38: -50 | D38: =D37+Dissolution[[#This Row],[Amount]] -> 5606.92 | E38: AGG | F38: =IF(Dissolution[[#This Row],[Category]]="Beginning Balance",Dissolution[[#This Row],[Running Bal.]],IF(Dissolution[[#This Row],[Category]]="AGG",F37+Dissolution[[#This Row],[Amount]],OFFSET(F38,-1,0))) -> 5606.92 | H38: =IFERROR(INDEX([1]Lookup!$B$2:$C$5,MATCH(RIGHT(TRIM(Dissolution[[#This Row],[Description]]),4),[1]Lookup!$B$2:$B$5,0),2),"") -> LRC | I38: Peregrine | J38: Stamps | L38: 220310 - LRC ADS_BG ER MasterCard Peregrine Billable 03-2022 | M38: 006-22 | N38: Stamps dot com Postage orders.pdf
A39: 2022-03-18 | B39: AMZN Mktp US*1N5B 03/17 PURCHASE Amzn.com/bill WA DEBIT CARD *7411 | C39: -29.63 | D39: =D38+Dissolution[[#This Row],[Amount]] -> 5577.29 | E39: AGG | F39: =IF(Dissolution[[#This Row],[Category]]="Beginning Balance",Dissolution[[#This Row],[Running Bal.]],IF(Dissolution[[#This Row],[Category]]="AGG",F38+Dissolution[[#This Row],[Amount]],OFFSET(F39,-1,0))) -> 5577.29 | H39: =IFERROR(INDEX([1]Lookup!$B$2:$C$5,MATCH(RIGHT(TRIM(Dissolution[[#This Row],[Description]]),4),[1]Lookup!$B$2:$B$5,0),2),"") -> LRC | I39: Peregrine | L39: 220310 - LRC ADS_BG ER MasterCard Peregrine Billable 03-2022 | M39: 006-22 | N39: Amazon.com - Order 114-5434031-3824202.pdf
A40: 2022-03-21 | B40: MailChimp 03/20 PURCHASE Atlanta GA DEBIT CARD *7411 | C40: -59 | D40: =D39+Dissolution[[#This Row],[Amount]] -> 5518.29 | E40: AGG | F40: =IF(Dissolution[[#This Row],[Category]]="Beginning Balance",Dissolution[[#This Row],[Running Bal.]],IF(Dissolution[[#This Row],[Category]]="AGG",F39+Dissolution[[#This Row],[Amount]],OFFSET(F40,-1,0))) -> 5518.29 | H40: =IFERROR(INDEX([1]Lookup!$B$2:$C$5,MATCH(RIGHT(TRIM(Dissolution[[#This Row],[Description]]),4),[1]Lookup!$B$2:$B$5,0),2),"") -> LRC | I40: Peregrine | J40: Mailchimp | L40: 220310 - LRC ADS_BG ER MasterCard Peregrine Billable 03-2022 | M40: 006-22 | N40: 220320 - Peregrine - Mailchimp Essentials MC15268026.pdf
A41: 2022-03-21 | B41: MAILCHIMP *MISC 03/18 PURCHASE MAILCHIMP.COM GA DEBIT CARD *7411 | C41: -11.62 | D41: =D40+Dissolution[[#This Row],[Amount]] -> 5506.67 | E41: AGG | F41: =IF(Dissolution[[#This Row],[Category]]="Beginning Balance",Dissolution[[#This Row],[Running Bal.]],IF(Dissolution[[#This Row],[Category]]="AGG",F40+Dissolution[[#This Row],[Amount]],OFFSET(F41,-1,0))) -> 5506.67 | H41: =IFERROR(INDEX([1]Lookup!$B$2:$C$5,MATCH(RIGHT(TRIM(Dissolution[[#This Row],[Description]]),4),[1]Lookup!$B$2:$B$5,0),2),"") -> LRC | I41: AGG | J41: Mailchimp | L41: 220322 ‐ LRC ADS_BG ER MasterCard 07‐2022 | M41: - | N41: 220318 - AGG - Mailchimp Essentials MC15252178.pdf
A42: 2022-03-23 | B42: TRANSFER AVIAGLOBAL GROUP, LL:ADS-B Global LLC Confirmation# 0107351744 | C42: -96.55 | D42: =D41+Dissolution[[#This Row],[Amount]] -> 5410.12 | E42: AGG | F42: =IF(Dissolution[[#This Row],[Category]]="Beginning Balance",Dissolution[[#This Row],[Running Bal.]],IF(Dissolution[[#This Row],[Category]]="AGG",F41+Dissolution[[#This Row],[Amount]],OFFSET(F42,-1,0))) -> 5410.12 | H42: =IFERROR(INDEX([1]Lookup!$B$2:$C$5,MATCH(RIGHT(TRIM(Dissolution[[#This Row],[Description]]),4),[1]Lookup!$B$2:$B$5,0),2),"") -> 
A43: 2022-03-24 | B43: USPS STAMPS ENDIC 03/23 PURCHASE 888-434-0055 DC DEBIT CARD *7411 | C43: -25 | D43: =D42+Dissolution[[#This Row],[Amount]] -> 5385.12 | E43: AGG | F43: =IF(Dissolution[[#This Row],[Category]]="Beginning Balance",Dissolution[[#This Row],[Running Bal.]],IF(Dissolution[[#This Row],[Category]]="AGG",F42+Dissolution[[#This Row],[Amount]],OFFSET(F43,-1,0))) -> 5385.12 | H43: =IFERROR(INDEX([1]Lookup!$B$2:$C$5,MATCH(RIGHT(TRIM(Dissolution[[#This Row],[Description]]),4),[1]Lookup!$B$2:$B$5,0),2),"") -> LRC | I43: Peregrine | J43: Stamps | L43: 220310 - LRC ADS_BG ER MasterCard Peregrine Billable 03-2022 | M43: 006-22 | N43: Stamps dot com Postage orders.pdf
A44: 2022-03-24 | B44: External transfer fee - 3 Day - 03/23/2022 Confirmation: 380466874 | C44: -1 | D44: =D43+Dissolution[[#This Row],[Amount]] -> 5384.12 | E44: AGG | F44: =IF(Dissolution[[#This Row],[Category]]="Beginning Balance",Dissolution[[#This Row],[Running Bal.]],IF(Dissolution[[#This Row],[Category]]="AGG",F43+Dissolution[[#This Row],[Amount]],OFFSET(F44,-1,0))) -> 5384.12 | H44: =IFERROR(INDEX([1]Lookup!$B$2:$C$5,MATCH(RIGHT(TRIM(Dissolution[[#This Row],[Description]]),4),[1]Lookup!$B$2:$B$5,0),2),"") ->  | I44: AGG | M44: -
A45: 2022-03-29 | B45: MICHAEL L STUCK C 03/28 PURCHASE SCOTTSDALE AZ DEBIT CARD *0975 | C45: -575 | D45: =D44+Dissolution[[#This Row],[Amount]] -> 4809.12 | E45: AGG | F45: =IF(Dissolution[[#This Row],[Category]]="Beginning Balance",Dissolution[[#This Row],[Running Bal.]],IF(Dissolution[[#This Row],[Category]]="AGG",F44+Dissolution[[#This Row],[Amount]],OFFSET(F45,-1,0))) -> 4809.12 | H45: =IFERROR(INDEX([1]Lookup!$B$2:$C$5,MATCH(RIGHT(TRIM(Dissolution[[#This Row],[Description]]),4),[1]Lookup!$B$2:$B$5,0),2),"") -> HEA | I45: AGG | N45: HEA AGG ER 01-2022 DebitCardRecon
A46: 2022-03-31 | B46: NATIONAL BUS AVIA 03/31 PURCHASE WASHINGTON DC DEBIT CARD *7411 | C46: -750 | D46: =D45+Dissolution[[#This Row],[Amount]] -> 4059.12 | E46: AGG | F46: =IF(Dissolution[[#This Row],[Category]]="Beginning Balance",Dissolution[[#This Row],[Running Bal.]],IF(Dissolution[[#This Row],[Category]]="AGG",F45+Dissolution[[#This Row],[Amount]],OFFSET(F46,-1,0))) -> 4059.12 | H46: =IFERROR(INDEX([1]Lookup!$B$2:$C$5,MATCH(RIGHT(TRIM(Dissolution[[#This Row],[Description]]),4),[1]Lookup!$B$2:$B$5,0),2),"") -> LRC | I46: AGG | L46: 221227 - LRC ADS_BG ER MasterCard 18-2022 | M46: - | N46: 220331 - NBAA Dues 000419790.pdf
A47: 2022-04-01 | B47: Monthly Fee Business Adv Relationship | C47: -29.95 | D47: =D46+Dissolution[[#This Row],[Amount]] -> 4029.17 | E47: AGG | F47: =IF(Dissolution[[#This Row],[Category]]="Beginning Balance",Dissolution[[#This Row],[Running Bal.]],IF(Dissolution[[#This Row],[Category]]="AGG",F46+Dissolution[[#This Row],[Amount]],OFFSET(F47,-1,0))) -> 4029.17 | H47: =IFERROR(INDEX([1]Lookup!$B$2:$C$5,MATCH(RIGHT(TRIM(Dissolution[[#This Row],[Description]]),4),[1]Lookup!$B$2:$B$5,0),2),"") ->  | I47: AGG | M47: -
A48: 2022-04-08 | B48: EVERMAP COMPANY L 04/05 PURCHASE CORVALLIS OR DEBIT CARD *0975 | C48: -149 | D48: =D47+Dissolution[[#This Row],[Amount]] -> 3880.17 | E48: AGG | F48: =IF(Dissolution[[#This Row],[Category]]="Beginning Balance",Dissolution[[#This Row],[Running Bal.]],IF(Dissolution[[#This Row],[Category]]="AGG",F47+Dissolution[[#This Row],[Amount]],OFFSET(F48,-1,0))) -> 3880.17 | H48: =IFERROR(INDEX([1]Lookup!$B$2:$C$5,MATCH(RIGHT(TRIM(Dissolution[[#This Row],[Description]]),4),[1]Lookup!$B$2:$B$5,0),2),"") -> HEA | I48: AGG | N48: HEA AGG ER 01-2022 DebitCardRecon
A49: 2022-04-13 | B49: EVERMAP COMPANY L 04/05 PURCHASE CORVALLIS OR DEBIT CARD *7411 | C49: -149 | D49: =D48+Dissolution[[#This Row],[Amount]] -> 3731.17 | E49: AGG | F49: =IF(Dissolution[[#This Row],[Category]]="Beginning Balance",Dissolution[[#This Row],[Running Bal.]],IF(Dissolution[[#This Row],[Category]]="AGG",F48+Dissolution[[#This Row],[Amount]],OFFSET(F49,-1,0))) -> 3731.17 | H49: =IFERROR(INDEX([1]Lookup!$B$2:$C$5,MATCH(RIGHT(TRIM(Dissolution[[#This Row],[Description]]),4),[1]Lookup!$B$2:$B$5,0),2),"") -> LRC | I49: AGG | L49: 221227 - LRC ADS_BG ER MasterCard 18-2022 | M49: - | N49: 220405 - Evermap PDF Tool W-48699.pdf
A50: 2022-04-14 | B50: STAMPS.COM 04/14 PURCHASE 855-608-2677 CA DEBIT CARD *7411 | C50: -17.99 | D50: =D49+Dissolution[[#This Row],[Amount]] -> 3713.18 | E50: AGG | F50: =IF(Dissolution[[#This Row],[Category]]="Beginning Balance",Dissolution[[#This Row],[Running Bal.]],IF(Dissolution[[#This Row],[Category]]="AGG",F49+Dissolution[[#This Row],[Amount]],OFFSET(F50,-1,0))) -> 3713.18 | H50: =IFERROR(INDEX([1]Lookup!$B$2:$C$5,MATCH(RIGHT(TRIM(Dissolution[[#This Row],[Description]]),4),[1]Lookup!$B$2:$B$5,0),2),"") -> LRC | I50: AGG | J50: Stamps | L50: 220624 - LRC ADS_BG ER Mastercard 10-2022 | M50: - | N50: 220416 - Stamps dot com.pdf
A51: 2022-04-19 | B51: MAILCHIMP *MISC 04/18 PURCHASE MAILCHIMP.COM GA DEBIT CARD *7411 | C51: -11.62 | D51: =D50+Dissolution[[#This Row],[Amount]] -> 3701.56 | E51: AGG | F51: =IF(Dissolution[[#This Row],[Category]]="Beginning Balance",Dissolution[[#This Row],[Running Bal.]],IF(Dissolution[[#This Row],[Category]]="AGG",F50+Dissolution[[#This Row],[Amount]],OFFSET(F51,-1,0))) -> 3701.56 | H51: =IFERROR(INDEX([1]Lookup!$B$2:$C$5,MATCH(RIGHT(TRIM(Dissolution[[#This Row],[Description]]),4),[1]Lookup!$B$2:$B$5,0),2),"") -> LRC | I51: AGG | J51: Mailchimp | L51: 220624 - LRC ADS_BG ER Mastercard 10-2022 | M51: - | N51: 220418 - AGG - Mailchimp Essentials MC15490450.pdf
A52: 2022-04-20 | B52: PEREGRINE AVIONI DES:QUICKBOOKS ID:375020979 INDN:AVIAGLOBAL GROUP, LLC CO ID:1722616653 PPD | C52: 3557.1 | D52: =D51+Dissolution[[#This Row],[Amount]] -> 7258.66 | E52: AGG | F52: =IF(Dissolution[[#This Row],[Category]]="Beginning Balance",Dissolution[[#This Row],[Running Bal.]],IF(Dissolution[[#This Row],[Category]]="AGG",F51+Dissolution[[#This Row],[Amount]],OFFSET(F52,-1,0))) -> 7258.66 | H52: =IFERROR(INDEX([1]Lookup!$B$2:$C$5,MATCH(RIGHT(TRIM(Dissolution[[#This Row],[Description]]),4),[1]Lookup!$B$2:$B$5,0),2),"") ->  | I52: Peregrine
A53: 2022-04-20 | B53: MailChimp 04/20 PURCHASE Atlanta GA DEBIT CARD *7411 | C53: -59 | D53: =D52+Dissolution[[#This Row],[Amount]] -> 7199.66 | E53: AGG | F53: =IF(Dissolution[[#This Row],[Category]]="Beginning Balance",Dissolution[[#This Row],[Running Bal.]],IF(Dissolution[[#This Row],[Category]]="AGG",F52+Dissolution[[#This Row],[Amount]],OFFSET(F53,-1,0))) -> 7199.66 | H53: =IFERROR(INDEX([1]Lookup!$B$2:$C$5,MATCH(RIGHT(TRIM(Dissolution[[#This Row],[Description]]),4),[1]Lookup!$B$2:$B$5,0),2),"") -> LRC | I53: Peregrine | J53: Mailchimp | L53: 220624 - LRC ADS_BG ER Peregrine Billable 09-2022 | M53: 011-22 | N53: 220420 - Peregrine - Mailchimp Essentials MC15506606.pdf
A54: 2022-04-22 | B54: TRANSFER AVIAGLOBAL GROUP, LL:ADS-B Global LLC Confirmation# 1763915441 | C54: -2000 | D54: =D53+Dissolution[[#This Row],[Amount]] -> 5199.66 | E54: AGG | F54: =IF(Dissolution[[#This Row],[Category]]="Beginning Balance",Dissolution[[#This Row],[Running Bal.]],IF(Dissolution[[#This Row],[Category]]="AGG",F53+Dissolution[[#This Row],[Amount]],OFFSET(F54,-1,0))) -> 5199.66 | H54: =IFERROR(INDEX([1]Lookup!$B$2:$C$5,MATCH(RIGHT(TRIM(Dissolution[[#This Row],[Description]]),4),[1]Lookup!$B$2:$B$5,0),2),"") -> 
A55: 2022-04-22 | B55: TRANSFER AVIAGLOBAL GROUP, LL:Forrest Colliver Confirmation# 0663925416 | C55: -2000 | D55: =D54+Dissolution[[#This Row],[Amount]] -> 3199.66 | E55: AGG | F55: =IF(Dissolution[[#This Row],[Category]]="Beginning Balance",Dissolution[[#This Row],[Running Bal.]],IF(Dissolution[[#This Row],[Category]]="AGG",F54+Dissolution[[#This Row],[Amount]],OFFSET(F55,-1,0))) -> 3199.66 | H55: =IFERROR(INDEX([1]Lookup!$B$2:$C$5,MATCH(RIGHT(TRIM(Dissolution[[#This Row],[Description]]),4),[1]Lookup!$B$2:$B$5,0),2),"") -> 
A56: 2022-04-22 | B56: Online Banking Transfer Conf# iuvu5ty24; AERO BUSINESS DEVELOPEMENT LLC | C56: -2000 | D56: =D55+Dissolution[[#This Row],[Amount]] -> 1199.66 | E56: AGG | F56: =IF(Dissolution[[#This Row],[Category]]="Beginning Balance",Dissolution[[#This Row],[Running Bal.]],IF(Dissolution[[#This Row],[Category]]="AGG",F55+Dissolution[[#This Row],[Amount]],OFFSET(F56,-1,0))) -> 1199.66 | H56: =IFERROR(INDEX([1]Lookup!$B$2:$C$5,MATCH(RIGHT(TRIM(Dissolution[[#This Row],[Description]]),4),[1]Lookup!$B$2:$B$5,0),2),"") -> 
A57: 2022-04-25 | B57: External transfer fee - 3 Day - 04/22/2022 Confirmation: 384618918 | C57: -1 | D57: =D56+Dissolution[[#This Row],[Amount]] -> 1198.66 | E57: AGG | F57: =IF(Dissolution[[#This Row],[Category]]="Beginning Balance",Dissolution[[#This Row],[Running Bal.]],IF(Dissolution[[#This Row],[Category]]="AGG",F56+Dissolution[[#This Row],[Amount]],OFFSET(F57,-1,0))) -> 1198.66 | H57: =IFERROR(INDEX([1]Lookup!$B$2:$C$5,MATCH(RIGHT(TRIM(Dissolution[[#This Row],[Description]]),4),[1]Lookup!$B$2:$B$5,0),2),"") ->  | I57: AGG | M57: -
A58: 2022-04-25 | B58: External transfer fee - 3 Day - 04/22/2022 Confirmation: 384619226 | C58: -1 | D58: =D57+Dissolution[[#This Row],[Amount]] -> 1197.66 | E58: AGG | F58: =IF(Dissolution[[#This Row],[Category]]="Beginning Balance",Dissolution[[#This Row],[Running Bal.]],IF(Dissolution[[#This Row],[Category]]="AGG",F57+Dissolution[[#This Row],[Amount]],OFFSET(F58,-1,0))) -> 1197.66 | H58: =IFERROR(INDEX([1]Lookup!$B$2:$C$5,MATCH(RIGHT(TRIM(Dissolution[[#This Row],[Description]]),4),[1]Lookup!$B$2:$B$5,0),2),"") ->  | I58: AGG | M58: -
A59: 2022-05-02 | B59: Monthly Fee Business Adv Relationship | C59: -29.95 | D59: =D58+Dissolution[[#This Row],[Amount]] -> 1167.71 | E59: AGG | F59: =IF(Dissolution[[#This Row],[Category]]="Beginning Balance",Dissolution[[#This Row],[Running Bal.]],IF(Dissolution[[#This Row],[Category]]="AGG",F58+Dissolution[[#This Row],[Amount]],OFFSET(F59,-1,0))) -> 1167.71 | H59: =IFERROR(INDEX([1]Lookup!$B$2:$C$5,MATCH(RIGHT(TRIM(Dissolution[[#This Row],[Description]]),4),[1]Lookup!$B$2:$B$5,0),2),"") ->  | I59: AGG | M59: -
A60: 2022-05-16 | B60: STAMPS.COM 05/14 PURCHASE 855-608-2677 CA DEBIT CARD *7411 | C60: -17.99 | D60: =D59+Dissolution[[#This Row],[Amount]] -> 1149.72 | E60: AGG | F60: =IF(Dissolution[[#This Row],[Category]]="Beginning Balance",Dissolution[[#This Row],[Running Bal.]],IF(Dissolution[[#This Row],[Category]]="AGG",F59+Dissolution[[#This Row],[Amount]],OFFSET(F60,-1,0))) -> 1149.72 | H60: =IFERROR(INDEX([1]Lookup!$B$2:$C$5,MATCH(RIGHT(TRIM(Dissolution[[#This Row],[Description]]),4),[1]Lookup!$B$2:$B$5,0),2),"") -> LRC | I60: AGG | J60: Stamps | L60: 220624 - LRC ADS_BG ER Mastercard 10-2022 | M60: - | N60: 220516 - Stamps dot com.pdf
A61: 2022-05-19 | B61: MAILCHIMP *MISC 05/18 PURCHASE MAILCHIMP.COM GA DEBIT CARD *7411 | C61: -11.62 | D61: =D60+Dissolution[[#This Row],[Amount]] -> 1138.1 | E61: AGG | F61: =IF(Dissolution[[#This Row],[Category]]="Beginning Balance",Dissolution[[#This Row],[Running Bal.]],IF(Dissolution[[#This Row],[Category]]="AGG",F60+Dissolution[[#This Row],[Amount]],OFFSET(F61,-1,0))) -> 1138.1 | H61: =IFERROR(INDEX([1]Lookup!$B$2:$C$5,MATCH(RIGHT(TRIM(Dissolution[[#This Row],[Description]]),4),[1]Lookup!$B$2:$B$5,0),2),"") -> LRC | I61: AGG | J61: Mailchimp | L61: 220624 - LRC ADS_BG ER Mastercard 10-2022 | M61: - | N61: 220518 - AGG - Mailchimp Essentials MC15724938.pdf
A62: 2022-05-20 | B62: MailChimp 05/20 PURCHASE Atlanta GA DEBIT CARD *7411 | C62: -59 | D62: =D61+Dissolution[[#This Row],[Amount]] -> 1079.1 | E62: AGG | F62: =IF(Dissolution[[#This Row],[Category]]="Beginning Balance",Dissolution[[#This Row],[Running Bal.]],IF(Dissolution[[#This Row],[Category]]="AGG",F61+Dissolution[[#This Row],[Amount]],OFFSET(F62,-1,0))) -> 1079.1 | H62: =IFERROR(INDEX([1]Lookup!$B$2:$C$5,MATCH(RIGHT(TRIM(Dissolution[[#This Row],[Description]]),4),[1]Lookup!$B$2:$B$5,0),2),"") -> LRC | I62: Peregrine | J62: Mailchimp | L62: 220624 - LRC ADS_BG ER Peregrine Billable 09-2022 | M62: 011-22 | N62: 220520 - Peregrine - Mailchimp Essentials MC15741014.pdf
A63: 2022-06-01 | B63: Monthly Fee Business Adv Relationship | C63: -29.95 | D63: =D62+Dissolution[[#This Row],[Amount]] -> 1049.15 | E63: AGG | F63: =IF(Dissolution[[#This Row],[Category]]="Beginning Balance",Dissolution[[#This Row],[Running Bal.]],IF(Dissolution[[#This Row],[Category]]="AGG",F62+Dissolution[[#This Row],[Amount]],OFFSET(F63,-1,0))) -> 1049.15 | H63: =IFERROR(INDEX([1]Lookup!$B$2:$C$5,MATCH(RIGHT(TRIM(Dissolution[[#This Row],[Description]]),4),[1]Lookup!$B$2:$B$5,0),2),"") ->  | I63: AGG | M63: -
A64: 2022-06-06 | B64: DMARCIAN* DMARCIA 06/04 PURCHASE BREVARD NC DEBIT CARD *7429 | C64: -239.88 | D64: =D63+Dissolution[[#This Row],[Amount]] -> 809.27 | E64: AGG | F64: =IF(Dissolution[[#This Row],[Category]]="Beginning Balance",Dissolution[[#This Row],[Running Bal.]],IF(Dissolution[[#This Row],[Category]]="AGG",F63+Dissolution[[#This Row],[Amount]],OFFSET(F64,-1,0))) -> 809.27 | H64: =IFERROR(INDEX([1]Lookup!$B$2:$C$5,MATCH(RIGHT(TRIM(Dissolution[[#This Row],[Description]]),4),[1]Lookup!$B$2:$B$5,0),2),"") -> FWC | I64: AGG | L64: 221201 - FWC ER Mastercard Dec-2022 | M64: - | N64: AGG - DMARCian invoice_50733.pdf
A65: 2022-06-08 | B65: DREAMSTIME.COM 06/07 PURCHASE BRENTWOOD TN DEBIT CARD *7411 | C65: -16.99 | D65: =D64+Dissolution[[#This Row],[Amount]] -> 792.28 | E65: AGG | F65: =IF(Dissolution[[#This Row],[Category]]="Beginning Balance",Dissolution[[#This Row],[Running Bal.]],IF(Dissolution[[#This Row],[Category]]="AGG",F64+Dissolution[[#This Row],[Amount]],OFFSET(F65,-1,0))) -> 792.28 | H65: =IFERROR(INDEX([1]Lookup!$B$2:$C$5,MATCH(RIGHT(TRIM(Dissolution[[#This Row],[Description]]),4),[1]Lookup!$B$2:$B$5,0),2),"") -> LRC | I65: Peregrine | L65: 220624 - LRC ADS_BG ER Peregrine Billable 09-2022 | M65: 011-22 | N65: 220607 - Dreamtime LLC 23829472.pdf
A66: 2022-06-08 | B66: DREAMSTIME.COM 06/07 PURCHASE BRENTWOOD TN DEBIT CARD *7411 | C66: -1 | D66: =D65+Dissolution[[#This Row],[Amount]] -> 791.28 | E66: AGG | F66: =IF(Dissolution[[#This Row],[Category]]="Beginning Balance",Dissolution[[#This Row],[Running Bal.]],IF(Dissolution[[#This Row],[Category]]="AGG",F65+Dissolution[[#This Row],[Amount]],OFFSET(F66,-1,0))) -> 791.28 | H66: =IFERROR(INDEX([1]Lookup!$B$2:$C$5,MATCH(RIGHT(TRIM(Dissolution[[#This Row],[Description]]),4),[1]Lookup!$B$2:$B$5,0),2),"") -> LRC | I66: Peregrine | L66: 220624 - LRC ADS_BG ER Peregrine Billable 09-2022 | M66: 011-22 | N66: 220607 - Dreamtime LLC 23829472.pdf
A67: 2022-06-14 | B67: STAMPS.COM 06/14 PURCHASE 855-608-2677 CA DEBIT CARD *7411 | C67: -17.99 | D67: =D66+Dissolution[[#This Row],[Amount]] -> 773.29 | E67: AGG | F67: =IF(Dissolution[[#This Row],[Category]]="Beginning Balance",Dissolution[[#This Row],[Running Bal.]],IF(Dissolution[[#This Row],[Category]]="AGG",F66+Dissolution[[#This Row],[Amount]],OFFSET(F67,-1,0))) -> 773.29 | H67: =IFERROR(INDEX([1]Lookup!$B$2:$C$5,MATCH(RIGHT(TRIM(Dissolution[[#This Row],[Description]]),4),[1]Lookup!$B$2:$B$5,0),2),"") -> LRC | I67: AGG | J67: Stamps | L67: 220624 - LRC ADS_BG ER Mastercard 10-2022 | M67: - | N67: 220616 - Stamps dot com.pdf
A68: 2022-06-21 | B68: MailChimp 06/20 PURCHASE Atlanta GA DEBIT CARD *7411 | C68: -59 | D68: =D67+Dissolution[[#This Row],[Amount]] -> 714.29 | E68: AGG | F68: =IF(Dissolution[[#This Row],[Category]]="Beginning Balance",Dissolution[[#This Row],[Running Bal.]],IF(Dissolution[[#This Row],[Category]]="AGG",F67+Dissolution[[#This Row],[Amount]],OFFSET(F68,-1,0))) -> 714.29 | H68: =IFERROR(INDEX([1]Lookup!$B$2:$C$5,MATCH(RIGHT(TRIM(Dissolution[[#This Row],[Description]]),4),[1]Lookup!$B$2:$B$5,0),2),"") -> LRC | I68: Peregrine | J68: Mailchimp | L68: 220624 - LRC ADS_BG ER Peregrine Billable 09-2022 | M68: 011-22 | N68: 220620 - Peregrine - Mailchimp Essentials MC15971334.pdf
A69: 2022-06-21 | B69: MAILCHIMP *MISC 06/18 PURCHASE MAILCHIMP.COM GA DEBIT CARD *7411 | C69: -11.62 | D69: =D68+Dissolution[[#This Row],[Amount]] -> 702.67 | E69: AGG | F69: =IF(Dissolution[[#This Row],[Category]]="Beginning Balance",Dissolution[[#This Row],[Running Bal.]],IF(Dissolution[[#This Row],[Category]]="AGG",F68+Dissolution[[#This Row],[Amount]],OFFSET(F69,-1,0))) -> 702.67 | H69: =IFERROR(INDEX([1]Lookup!$B$2:$C$5,MATCH(RIGHT(TRIM(Dissolution[[#This Row],[Description]]),4),[1]Lookup!$B$2:$B$5,0),2),"") -> LRC | I69: AGG | J69: Mailchimp | L69: 220624 - LRC ADS_BG ER Mastercard 10-2022 | M69: - | N69: 220618 - AGG - Mailchimp Essentials MC15956138.pdf
A70: 2022-06-21 | B70: ELEMENTOR 06/20 PURCHASE WILMINGTON DE DEBIT CARD *7429 | C70: -49 | D70: =D69+Dissolution[[#This Row],[Amount]] -> 653.67 | E70: AGG | F70: =IF(Dissolution[[#This Row],[Category]]="Beginning Balance",Dissolution[[#This Row],[Running Bal.]],IF(Dissolution[[#This Row],[Category]]="AGG",F69+Dissolution[[#This Row],[Amount]],OFFSET(F70,-1,0))) -> 653.67 | H70: =IFERROR(INDEX([1]Lookup!$B$2:$C$5,MATCH(RIGHT(TRIM(Dissolution[[#This Row],[Description]]),4),[1]Lookup!$B$2:$B$5,0),2),"") -> FWC | I70: AGG | L70: 221201 - FWC ER Mastercard Dec-2022 | M70: - | N70: 220124 - Elementor Receipt 11416195.pdf
A71: 2022-06-21 | B71: REALLY-SIMPLE-SSL 06/20 PURCHASE GRONINGEN DEBIT CARD *7429 | C71: -23.2 | D71: =D70+Dissolution[[#This Row],[Amount]] -> 630.47 | E71: AGG | F71: =IF(Dissolution[[#This Row],[Category]]="Beginning Balance",Dissolution[[#This Row],[Running Bal.]],IF(Dissolution[[#This Row],[Category]]="AGG",F70+Dissolution[[#This Row],[Amount]],OFFSET(F71,-1,0))) -> 630.47 | H71: =IFERROR(INDEX([1]Lookup!$B$2:$C$5,MATCH(RIGHT(TRIM(Dissolution[[#This Row],[Description]]),4),[1]Lookup!$B$2:$B$5,0),2),"") -> FWC | I71: AGG | L71: 221201 - FWC ER Mastercard Dec-2022 | M71: - | N71: AGG - ReallySimple SSL Receipt 2022-13884.pdf
A72: 2022-06-21 | B72: COMPLIANZ-GDPR-PR 06/20 PURCHASE GRONINGEN DEBIT CARD *7429 | C72: -45 | D72: =D71+Dissolution[[#This Row],[Amount]] -> 585.47 | E72: AGG | F72: =IF(Dissolution[[#This Row],[Category]]="Beginning Balance",Dissolution[[#This Row],[Running Bal.]],IF(Dissolution[[#This Row],[Category]]="AGG",F71+Dissolution[[#This Row],[Amount]],OFFSET(F72,-1,0))) -> 585.47 | H72: =IFERROR(INDEX([1]Lookup!$B$2:$C$5,MATCH(RIGHT(TRIM(Dissolution[[#This Row],[Description]]),4),[1]Lookup!$B$2:$B$5,0),2),"") -> FWC | I72: AGG | L72: 221201 - FWC ER Mastercard Dec-2022 | M72: - | N72: 220125 - Complianz Invoice 2022-0745.pdf
A73: 2022-06-21 | B73: INTERNATIONAL TRANSACTION FEE 06/20 COMPLIANZ-GDPR-PR GRONINGEN DEBIT CARD *7429 | C73: -1.35 | D73: =D72+Dissolution[[#This Row],[Amount]] -> 584.12 | E73: AGG | F73: =IF(Dissolution[[#This Row],[Category]]="Beginning Balance",Dissolution[[#This Row],[Running Bal.]],IF(Dissolution[[#This Row],[Category]]="AGG",F72+Dissolution[[#This Row],[Amount]],OFFSET(F73,-1,0))) -> 584.12 | H73: =IFERROR(INDEX([1]Lookup!$B$2:$C$5,MATCH(RIGHT(TRIM(Dissolution[[#This Row],[Description]]),4),[1]Lookup!$B$2:$B$5,0),2),"") -> FWC | I73: AGG | L73: 221201 - FWC ER Mastercard Dec-2022 | M73: - | N73: =TEXT(Dissolution[[#This Row],[Date]],"YYMMDD")&" - Intl Transaction Fee - "&LEFT(RIGHT(Dissolution[[#This Row],[Description]],LEN(Dissolution[[#This Row],[Description]])-LEN("international transaction fee xx/xx ")),SEARCH("DEBIT",RIGHT(Dissolution[[#This Row],[Description]],LEN(Dissolution[[#This Row],[Description]])-LEN("international transaction fee xx/xx xx"))))&".pdf" -> 220621 - Intl Transaction Fee - COMPLIANZ-GDPR-PR GRONINGEN.pdf
A74: 2022-06-21 | B74: INTERNATIONAL TRANSACTION FEE 06/20 REALLY-SIMPLE-SSL GRONINGEN DEBIT CARD *7429 | C74: -0.7 | D74: =D73+Dissolution[[#This Row],[Amount]] -> 583.42 | E74: AGG | F74: =IF(Dissolution[[#This Row],[Category]]="Beginning Balance",Dissolution[[#This Row],[Running Bal.]],IF(Dissolution[[#This Row],[Category]]="AGG",F73+Dissolution[[#This Row],[Amount]],OFFSET(F74,-1,0))) -> 583.42 | H74: =IFERROR(INDEX([1]Lookup!$B$2:$C$5,MATCH(RIGHT(TRIM(Dissolution[[#This Row],[Description]]),4),[1]Lookup!$B$2:$B$5,0),2),"") -> FWC | I74: AGG | L74: 221201 - FWC ER Mastercard Dec-2022 | M74: - | N74: =TEXT(Dissolution[[#This Row],[Date]],"YYMMDD")&" - Intl Transaction Fee - "&LEFT(RIGHT(Dissolution[[#This Row],[Description]],LEN(Dissolution[[#This Row],[Description]])-LEN("international transaction fee xx/xx ")),SEARCH("DEBIT",RIGHT(Dissolution[[#This Row],[Description]],LEN(Dissolution[[#This Row],[Description]])-LEN("international transaction fee xx/xx xx"))))&".pdf" -> 220621 - Intl Transaction Fee - REALLY-SIMPLE-SSL GRONINGEN.pdf
A75: 2022-07-01 | B75: Monthly Fee Business Adv Relationship | C75: -29.95 | D75: =D74+Dissolution[[#This Row],[Amount]] -> 553.47 | E75: AGG | F75: =IF(Dissolution[[#This Row],[Category]]="Beginning Balance",Dissolution[[#This Row],[Running Bal.]],IF(Dissolution[[#This Row],[Category]]="AGG",F74+Dissolution[[#This Row],[Amount]],OFFSET(F75,-1,0))) -> 553.47 | H75: =IFERROR(INDEX([1]Lookup!$B$2:$C$5,MATCH(RIGHT(TRIM(Dissolution[[#This Row],[Description]]),4),[1]Lookup!$B$2:$B$5,0),2),"") ->  | I75: AGG | M75: -
A76: 2022-07-08 | B76: PEREGRINE AVIONI DES:QUICKBOOKS ID:375020979 INDN:AVIAGLOBAL GROUP, LLC CO ID:1722616653 PPD | C76: 3000 | D76: =D75+Dissolution[[#This Row],[Amount]] -> 3553.47 | E76: AGG | F76: =IF(Dissolution[[#This Row],[Category]]="Beginning Balance",Dissolution[[#This Row],[Running Bal.]],IF(Dissolution[[#This Row],[Category]]="AGG",F75+Dissolution[[#This Row],[Amount]],OFFSET(F76,-1,0))) -> 3553.47 | H76: =IFERROR(INDEX([1]Lookup!$B$2:$C$5,MATCH(RIGHT(TRIM(Dissolution[[#This Row],[Description]]),4),[1]Lookup!$B$2:$B$5,0),2),"") ->  | I76: Peregrine
A77: 2022-07-14 | B77: STAMPS.COM 07/14 PURCHASE 855-608-2677 CA DEBIT CARD *7411 | C77: -17.99 | D77: =D76+Dissolution[[#This Row],[Amount]] -> 3535.48 | E77: AGG | F77: =IF(Dissolution[[#This Row],[Category]]="Beginning Balance",Dissolution[[#This Row],[Running Bal.]],IF(Dissolution[[#This Row],[Category]]="AGG",F76+Dissolution[[#This Row],[Amount]],OFFSET(F77,-1,0))) -> 3535.48 | H77: =IFERROR(INDEX([1]Lookup!$B$2:$C$5,MATCH(RIGHT(TRIM(Dissolution[[#This Row],[Description]]),4),[1]Lookup!$B$2:$B$5,0),2),"") -> LRC | I77: AGG | J77: Stamps | L77: 221020 - LRC ADS_BG ER Mastercard 12-2022 | M77: - | N77: 220714 - Stamps dot com.pdf
A78: 2022-07-19 | B78: MAILCHIMP *MISC 07/18 PURCHASE MAILCHIMP.COM GA DEBIT CARD *7411 | C78: -11.62 | D78: =D77+Dissolution[[#This Row],[Amount]] -> 3523.86 | E78: AGG | F78: =IF(Dissolution[[#This Row],[Category]]="Beginning Balance",Dissolution[[#This Row],[Running Bal.]],IF(Dissolution[[#This Row],[Category]]="AGG",F77+Dissolution[[#This Row],[Amount]],OFFSET(F78,-1,0))) -> 3523.86 | H78: =IFERROR(INDEX([1]Lookup!$B$2:$C$5,MATCH(RIGHT(TRIM(Dissolution[[#This Row],[Description]]),4),[1]Lookup!$B$2:$B$5,0),2),"") -> LRC | I78: AGG | J78: Mailchimp | L78: 221020 - LRC ADS_BG ER Mastercard 12-2022 | M78: - | N78: 220719 - AGG - Mailchimp Essentials MC16182470.pdf
A79: 2022-07-20 | B79: MailChimp 07/20 PURCHASE Atlanta GA DEBIT CARD *7411 | C79: -59 | D79: =D78+Dissolution[[#This Row],[Amount]] -> 3464.86 | E79: AGG | F79: =IF(Dissolution[[#This Row],[Category]]="Beginning Balance",Dissolution[[#This Row],[Running Bal.]],IF(Dissolution[[#This Row],[Category]]="AGG",F78+Dissolution[[#This Row],[Amount]],OFFSET(F79,-1,0))) -> 3464.86 | H79: =IFERROR(INDEX([1]Lookup!$B$2:$C$5,MATCH(RIGHT(TRIM(Dissolution[[#This Row],[Description]]),4),[1]Lookup!$B$2:$B$5,0),2),"") -> LRC | I79: Peregrine | J79: Mailchimp | L79: 221020 - LRC ADS_BG ER Peregrine Billable 13-2022 | M79: 015-22 | N79: 220720 - Peregrine - Mailchimp Essentials MC16197922.pdf
A80: 2022-08-01 | B80: SAE INTERNATIONAL 07/30 PURCHASE 7247764841 PA DEBIT CARD *7411 | C80: -120 | D80: =D79+Dissolution[[#This Row],[Amount]] -> 3344.86 | E80: AGG | F80: =IF(Dissolution[[#This Row],[Category]]="Beginning Balance",Dissolution[[#This Row],[Running Bal.]],IF(Dissolution[[#This Row],[Category]]="AGG",F79+Dissolution[[#This Row],[Amount]],OFFSET(F80,-1,0))) -> 3344.86 | H80: =IFERROR(INDEX([1]Lookup!$B$2:$C$5,MATCH(RIGHT(TRIM(Dissolution[[#This Row],[Description]]),4),[1]Lookup!$B$2:$B$5,0),2),"") -> LRC | I80: AGG | L80: 221020 - LRC ADS_BG ER Mastercard 12-2022 | M80: - | N80: 220701 - SAE Auto Renewal.pdf
A81: 2022-08-01 | B81: Monthly Fee Business Adv Relationship | C81: -29.95 | D81: =D80+Dissolution[[#This Row],[Amount]] -> 3314.91 | E81: AGG | F81: =IF(Dissolution[[#This Row],[Category]]="Beginning Balance",Dissolution[[#This Row],[Running Bal.]],IF(Dissolution[[#This Row],[Category]]="AGG",F80+Dissolution[[#This Row],[Amount]],OFFSET(F81,-1,0))) -> 3314.91 | H81: =IFERROR(INDEX([1]Lookup!$B$2:$C$5,MATCH(RIGHT(TRIM(Dissolution[[#This Row],[Description]]),4),[1]Lookup!$B$2:$B$5,0),2),"") ->  | I81: AGG | M81: -
A82: 2022-08-08 | B82: PEREGRINE AVIONI DES:QUICKBOOKS ID:375020979 INDN:AVIAGLOBAL GROUP, LLC CO ID:1722616653 PPD | C82: 3000 | D82: =D81+Dissolution[[#This Row],[Amount]] -> 6314.91 | E82: AGG | F82: =IF(Dissolution[[#This Row],[Category]]="Beginning Balance",Dissolution[[#This Row],[Running Bal.]],IF(Dissolution[[#This Row],[Category]]="AGG",F81+Dissolution[[#This Row],[Amount]],OFFSET(F82,-1,0))) -> 6314.91 | H82: =IFERROR(INDEX([1]Lookup!$B$2:$C$5,MATCH(RIGHT(TRIM(Dissolution[[#This Row],[Description]]),4),[1]Lookup!$B$2:$B$5,0),2),"") ->  | I82: Peregrine
A83: 2022-08-15 | B83: STAMPS.COM 08/14 PURCHASE 855-608-2677 CA DEBIT CARD *7411 | C83: -17.99 | D83: =D82+Dissolution[[#This Row],[Amount]] -> 6296.92 | E83: AGG | F83: =IF(Dissolution[[#This Row],[Category]]="Beginning Balance",Dissolution[[#This Row],[Running Bal.]],IF(Dissolution[[#This Row],[Category]]="AGG",F82+Dissolution[[#This Row],[Amount]],OFFSET(F83,-1,0))) -> 6296.92 | H83: =IFERROR(INDEX([1]Lookup!$B$2:$C$5,MATCH(RIGHT(TRIM(Dissolution[[#This Row],[Description]]),4),[1]Lookup!$B$2:$B$5,0),2),"") -> LRC | I83: AGG | J83: Stamps | L83: 221020 - LRC ADS_BG ER Mastercard 12-2022 | M83: - | N83: 220815 - Stamps dot com.pdf
A84: 2022-08-19 | B84: MAILCHIMP *MISC 08/18 PURCHASE MAILCHIMP.COM GA DEBIT CARD *7411 | C84: -11.62 | D84: =D83+Dissolution[[#This Row],[Amount]] -> 6285.3 | E84: AGG | F84: =IF(Dissolution[[#This Row],[Category]]="Beginning Balance",Dissolution[[#This Row],[Running Bal.]],IF(Dissolution[[#This Row],[Category]]="AGG",F83+Dissolution[[#This Row],[Amount]],OFFSET(F84,-1,0))) -> 6285.3 | H84: =IFERROR(INDEX([1]Lookup!$B$2:$C$5,MATCH(RIGHT(TRIM(Dissolution[[#This Row],[Description]]),4),[1]Lookup!$B$2:$B$5,0),2),"") -> LRC | I84: AGG | J84: Mailchimp | L84: 221020 - LRC ADS_BG ER Mastercard 12-2022 | M84: - | N84: 220818 - AGG - Mailchimp Essentials MC16405518.pdf
A85: 2022-08-22 | B85: MailChimp 08/20 PURCHASE Atlanta GA DEBIT CARD *7411 | C85: -59 | D85: =D84+Dissolution[[#This Row],[Amount]] -> 6226.3 | E85: AGG | F85: =IF(Dissolution[[#This Row],[Category]]="Beginning Balance",Dissolution[[#This Row],[Running Bal.]],IF(Dissolution[[#This Row],[Category]]="AGG",F84+Dissolution[[#This Row],[Amount]],OFFSET(F85,-1,0))) -> 6226.3 | H85: =IFERROR(INDEX([1]Lookup!$B$2:$C$5,MATCH(RIGHT(TRIM(Dissolution[[#This Row],[Description]]),4),[1]Lookup!$B$2:$B$5,0),2),"") -> LRC | I85: Peregrine | J85: Mailchimp | L85: 221020 - LRC ADS_BG ER Peregrine Billable 13-2022 | M85: 015-22 | N85: 220820 - Peregrine - Mailchimp Essentials MC16420842.pdf
A86: 2022-08-31 | B86: PEREGRINE AVIONI DES:QUICKBOOKS ID:375020979 INDN:AVIAGLOBAL GROUP, LLC CO ID:1722616653 PPD | C86: 3194.99 | D86: =D85+Dissolution[[#This Row],[Amount]] -> 9421.29 | E86: AGG | F86: =IF(Dissolution[[#This Row],[Category]]="Beginning Balance",Dissolution[[#This Row],[Running Bal.]],IF(Dissolution[[#This Row],[Category]]="AGG",F85+Dissolution[[#This Row],[Amount]],OFFSET(F86,-1,0))) -> 9421.29 | H86: =IFERROR(INDEX([1]Lookup!$B$2:$C$5,MATCH(RIGHT(TRIM(Dissolution[[#This Row],[Description]]),4),[1]Lookup!$B$2:$B$5,0),2),"") ->  | I86: Peregrine
A87: 2022-09-01 | B87: HELICOPTER ASSOCI 08/31 PURCHASE 7036834646 VA DEBIT CARD *7429 | C87: -325 | D87: =D86+Dissolution[[#This Row],[Amount]] -> 9096.29 | E87: AGG | F87: =IF(Dissolution[[#This Row],[Category]]="Beginning Balance",Dissolution[[#This Row],[Running Bal.]],IF(Dissolution[[#This Row],[Category]]="AGG",F86+Dissolution[[#This Row],[Amount]],OFFSET(F87,-1,0))) -> 9096.29 | H87: =IFERROR(INDEX([1]Lookup!$B$2:$C$5,MATCH(RIGHT(TRIM(Dissolution[[#This Row],[Description]]),4),[1]Lookup!$B$2:$B$5,0),2),"") -> FWC | I87: AGG | L87: 221201 - FWC ER Mastercard Dec-2022 | M87: - | N87: AGG - HAI Receipt- 145241.pdf
A88: 2022-09-01 | B88: Monthly Fee Business Adv Relationship | C88: -29.95 | D88: =D87+Dissolution[[#This Row],[Amount]] -> 9066.34 | E88: AGG | F88: =IF(Dissolution[[#This Row],[Category]]="Beginning Balance",Dissolution[[#This Row],[Running Bal.]],IF(Dissolution[[#This Row],[Category]]="AGG",F87+Dissolution[[#This Row],[Amount]],OFFSET(F88,-1,0))) -> 9066.34 | H88: =IFERROR(INDEX([1]Lookup!$B$2:$C$5,MATCH(RIGHT(TRIM(Dissolution[[#This Row],[Description]]),4),[1]Lookup!$B$2:$B$5,0),2),"") ->  | I88: AGG | M88: -
A89: 2022-09-07 | B89: TRANSFER AVIAGLOBAL GROUP, LL:ADS-B Global LLC Confirmation# 0156760934 | C89: -2700 | D89: =D88+Dissolution[[#This Row],[Amount]] -> 6366.34 | E89: AGG | F89: =IF(Dissolution[[#This Row],[Category]]="Beginning Balance",Dissolution[[#This Row],[Running Bal.]],IF(Dissolution[[#This Row],[Category]]="AGG",F88+Dissolution[[#This Row],[Amount]],OFFSET(F89,-1,0))) -> 6366.34 | H89: =IFERROR(INDEX([1]Lookup!$B$2:$C$5,MATCH(RIGHT(TRIM(Dissolution[[#This Row],[Description]]),4),[1]Lookup!$B$2:$B$5,0),2),"") -> 
A90: 2022-09-07 | B90: TRANSFER AVIAGLOBAL GROUP, LL:Forrest Colliver Confirmation# 1556772007 | C90: -2700 | D90: =D89+Dissolution[[#This Row],[Amount]] -> 3666.34 | E90: AGG | F90: =IF(Dissolution[[#This Row],[Category]]="Beginning Balance",Dissolution[[#This Row],[Running Bal.]],IF(Dissolution[[#This Row],[Category]]="AGG",F89+Dissolution[[#This Row],[Amount]],OFFSET(F90,-1,0))) -> 3666.34 | H90: =IFERROR(INDEX([1]Lookup!$B$2:$C$5,MATCH(RIGHT(TRIM(Dissolution[[#This Row],[Description]]),4),[1]Lookup!$B$2:$B$5,0),2),"") -> 
A91: 2022-09-07 | B91: Online Banking Transfer Conf# itu1b5i02; AERO BUSINESS DEVELOPEMENT LLC | C91: -2700 | D91: =D90+Dissolution[[#This Row],[Amount]] -> 966.34 | E91: AGG | F91: =IF(Dissolution[[#This Row],[Category]]="Beginning Balance",Dissolution[[#This Row],[Running Bal.]],IF(Dissolution[[#This Row],[Category]]="AGG",F90+Dissolution[[#This Row],[Amount]],OFFSET(F91,-1,0))) -> 966.34 | H91: =IFERROR(INDEX([1]Lookup!$B$2:$C$5,MATCH(RIGHT(TRIM(Dissolution[[#This Row],[Description]]),4),[1]Lookup!$B$2:$B$5,0),2),"") -> 
A92: 2022-09-08 | B92: External transfer fee - 3 Day - 09/07/2022 Confirmation: 403675046 | C92: -1 | D92: =D91+Dissolution[[#This Row],[Amount]] -> 965.34 | E92: AGG | F92: =IF(Dissolution[[#This Row],[Category]]="Beginning Balance",Dissolution[[#This Row],[Running Bal.]],IF(Dissolution[[#This Row],[Category]]="AGG",F91+Dissolution[[#This Row],[Amount]],OFFSET(F92,-1,0))) -> 965.34 | H92: =IFERROR(INDEX([1]Lookup!$B$2:$C$5,MATCH(RIGHT(TRIM(Dissolution[[#This Row],[Description]]),4),[1]Lookup!$B$2:$B$5,0),2),"") ->  | I92: AGG | M92: -
A93: 2022-09-08 | B93: External transfer fee - 3 Day - 09/07/2022 Confirmation: 403675426 | C93: -1 | D93: =D92+Dissolution[[#This Row],[Amount]] -> 964.34 | E93: AGG | F93: =IF(Dissolution[[#This Row],[Category]]="Beginning Balance",Dissolution[[#This Row],[Running Bal.]],IF(Dissolution[[#This Row],[Category]]="AGG",F92+Dissolution[[#This Row],[Amount]],OFFSET(F93,-1,0))) -> 964.34 | H93: =IFERROR(INDEX([1]Lookup!$B$2:$C$5,MATCH(RIGHT(TRIM(Dissolution[[#This Row],[Description]]),4),[1]Lookup!$B$2:$B$5,0),2),"") ->  | I93: AGG | M93: -
A94: 2022-09-14 | B94: PEREGRINE AVIONI DES:QUICKBOOKS ID:375020979 INDN:AVIAGLOBAL GROUP, LLC CO ID:1722616653 PPD | C94: 3000 | D94: =D93+Dissolution[[#This Row],[Amount]] -> 3964.34 | E94: AGG | F94: =IF(Dissolution[[#This Row],[Category]]="Beginning Balance",Dissolution[[#This Row],[Running Bal.]],IF(Dissolution[[#This Row],[Category]]="AGG",F93+Dissolution[[#This Row],[Amount]],OFFSET(F94,-1,0))) -> 3964.34 | H94: =IFERROR(INDEX([1]Lookup!$B$2:$C$5,MATCH(RIGHT(TRIM(Dissolution[[#This Row],[Description]]),4),[1]Lookup!$B$2:$B$5,0),2),"") ->  | I94: Peregrine
A95: 2022-09-14 | B95: STAMPS.COM 09/14 PURCHASE 855-608-2677 CA DEBIT CARD *7411 | C95: -17.99 | D95: =D94+Dissolution[[#This Row],[Amount]] -> 3946.35 | E95: AGG | F95: =IF(Dissolution[[#This Row],[Category]]="Beginning Balance",Dissolution[[#This Row],[Running Bal.]],IF(Dissolution[[#This Row],[Category]]="AGG",F94+Dissolution[[#This Row],[Amount]],OFFSET(F95,-1,0))) -> 3946.35 | H95: =IFERROR(INDEX([1]Lookup!$B$2:$C$5,MATCH(RIGHT(TRIM(Dissolution[[#This Row],[Description]]),4),[1]Lookup!$B$2:$B$5,0),2),"") -> LRC | I95: AGG | J95: Stamps | L95: 221020 - LRC ADS_BG ER Mastercard 12-2022 | M95: - | N95: 220914 - Stamps dot com.pdf
A96: 2022-09-19 | B96: MAILCHIMP *MISC 09/18 PURCHASE MAILCHIMP.COM GA DEBIT CARD *7411 | C96: -11.62 | D96: =D95+Dissolution[[#This Row],[Amount]] -> 3934.73 | E96: AGG | F96: =IF(Dissolution[[#This Row],[Category]]="Beginning Balance",Dissolution[[#This Row],[Running Bal.]],IF(Dissolution[[#This Row],[Category]]="AGG",F95+Dissolution[[#This Row],[Amount]],OFFSET(F96,-1,0))) -> 3934.73 | H96: =IFERROR(INDEX([1]Lookup!$B$2:$C$5,MATCH(RIGHT(TRIM(Dissolution[[#This Row],[Description]]),4),[1]Lookup!$B$2:$B$5,0),2),"") -> LRC | I96: AGG | J96: Mailchimp | L96: 221020 - LRC ADS_BG ER Mastercard 12-2022 | M96: - | N96: 220918 - AGG - Mailchimp Essentials MC16627250.pdf
A97: 2022-09-20 | B97: MailChimp 09/20 PURCHASE Atlanta GA DEBIT CARD *7411 | C97: -59 | D97: =D96+Dissolution[[#This Row],[Amount]] -> 3875.73 | E97: AGG | F97: =IF(Dissolution[[#This Row],[Category]]="Beginning Balance",Dissolution[[#This Row],[Running Bal.]],IF(Dissolution[[#This Row],[Category]]="AGG",F96+Dissolution[[#This Row],[Amount]],OFFSET(F97,-1,0))) -> 3875.73 | H97: =IFERROR(INDEX([1]Lookup!$B$2:$C$5,MATCH(RIGHT(TRIM(Dissolution[[#This Row],[Description]]),4),[1]Lookup!$B$2:$B$5,0),2),"") -> LRC | I97: Peregrine | J97: Mailchimp | L97: 221020 - LRC ADS_BG ER Peregrine Billable 13-2022 | M97: 015-22 | N97: 220920 - Peregrine - Mailchimp Essentials MC16642305.pdf
A98: 2022-10-03 | B98: Monthly Fee Business Adv Relationship | C98: -29.95 | D98: =D97+Dissolution[[#This Row],[Amount]] -> 3845.78 | E98: AGG | F98: =IF(Dissolution[[#This Row],[Category]]="Beginning Balance",Dissolution[[#This Row],[Running Bal.]],IF(Dissolution[[#This Row],[Category]]="AGG",F97+Dissolution[[#This Row],[Amount]],OFFSET(F98,-1,0))) -> 3845.78 | H98: =IFERROR(INDEX([1]Lookup!$B$2:$C$5,MATCH(RIGHT(TRIM(Dissolution[[#This Row],[Description]]),4),[1]Lookup!$B$2:$B$5,0),2),"") ->  | I98: AGG | M98: -
A99: 2022-10-06 | B99: DOWNLOAD-MONITOR. 10/06 PURCHASE BUCURESTI DEBIT CARD *7429 | C99: -159 | D99: =D98+Dissolution[[#This Row],[Amount]] -> 3686.78 | E99: AGG | F99: =IF(Dissolution[[#This Row],[Category]]="Beginning Balance",Dissolution[[#This Row],[Running Bal.]],IF(Dissolution[[#This Row],[Category]]="AGG",F98+Dissolution[[#This Row],[Amount]],OFFSET(F99,-1,0))) -> 3686.78 | H99: =IFERROR(INDEX([1]Lookup!$B$2:$C$5,MATCH(RIGHT(TRIM(Dissolution[[#This Row],[Description]]),4),[1]Lookup!$B$2:$B$5,0),2),"") -> FWC | I99: Peregrine | L99: 221201 - FWC ER Peregrine Billable EOY-2022 | M99: 018-22 | N99: Peregrine - Download Monitor Invoice-3198.pdf
A100: 2022-10-06 | B100: INTERNATIONAL TRANSACTION FEE 10/06 DOWNLOAD-MONITOR. BUCURESTI DEBIT CARD *7429 | C100: -4.77 | D100: =D99+Dissolution[[#This Row],[Amount]] -> 3682.01 | E100: AGG | F100: =IF(Dissolution[[#This Row],[Category]]="Beginning Balance",Dissolution[[#This Row],[Running Bal.]],IF(Dissolution[[#This Row],[Category]]="AGG",F99+Dissolution[[#This Row],[Amount]],OFFSET(F100,-1,0))) -> 3682.01 | H100: =IFERROR(INDEX([1]Lookup!$B$2:$C$5,MATCH(RIGHT(TRIM(Dissolution[[#This Row],[Description]]),4),[1]Lookup!$B$2:$B$5,0),2),"") -> FWC | I100: Peregrine | L100: 221201 - FWC ER Peregrine Billable EOY-2022 | M100: 018-22 | N100: 221006 - INTERNATIONAL TRANSACTION FEE DOWNLOAD-MONITOR
A101: 2022-10-17 | B101: STAMPS.COM 10/14 PURCHASE 855-608-2677 CA DEBIT CARD *7411 | C101: -17.99 | D101: =D100+Dissolution[[#This Row],[Amount]] -> 3664.02 | E101: AGG | F101: =IF(Dissolution[[#This Row],[Category]]="Beginning Balance",Dissolution[[#This Row],[Running Bal.]],IF(Dissolution[[#This Row],[Category]]="AGG",F100+Dissolution[[#This Row],[Amount]],OFFSET(F101,-1,0))) -> 3664.02 | H101: =IFERROR(INDEX([1]Lookup!$B$2:$C$5,MATCH(RIGHT(TRIM(Dissolution[[#This Row],[Description]]),4),[1]Lookup!$B$2:$B$5,0),2),"") -> LRC | I101: AGG | J101: Stamps | L101: 221020 - LRC ADS_BG ER Mastercard 12-2022 | M101: - | N101: 221017 - Stamps dot com.pdf
A102: 2022-10-19 | B102: MAILCHIMP *MISC 10/18 PURCHASE MAILCHIMP.COM GA DEBIT CARD *7411 | C102: -11.62 | D102: =D101+Dissolution[[#This Row],[Amount]] -> 3652.4 | E102: AGG | F102: =IF(Dissolution[[#This Row],[Category]]="Beginning Balance",Dissolution[[#This Row],[Running Bal.]],IF(Dissolution[[#This Row],[Category]]="AGG",F101+Dissolution[[#This Row],[Amount]],OFFSET(F102,-1,0))) -> 3652.4 | H102: =IFERROR(INDEX([1]Lookup!$B$2:$C$5,MATCH(RIGHT(TRIM(Dissolution[[#This Row],[Description]]),4),[1]Lookup!$B$2:$B$5,0),2),"") -> LRC | I102: AGG | J102: Mailchimp | L102: 221020 - LRC ADS_BG ER Mastercard 12-2022 | M102: - | N102: 221018 - AGG - Mailchimp Essentials MC16858121.pdf
A103: 2022-10-20 | B103: MailChimp 10/20 PURCHASE Atlanta GA DEBIT CARD *7411 | C103: -59 | D103: =D102+Dissolution[[#This Row],[Amount]] -> 3593.4 | E103: AGG | F103: =IF(Dissolution[[#This Row],[Category]]="Beginning Balance",Dissolution[[#This Row],[Running Bal.]],IF(Dissolution[[#This Row],[Category]]="AGG",F102+Dissolution[[#This Row],[Amount]],OFFSET(F103,-1,0))) -> 3593.4 | H103: =IFERROR(INDEX([1]Lookup!$B$2:$C$5,MATCH(RIGHT(TRIM(Dissolution[[#This Row],[Description]]),4),[1]Lookup!$B$2:$B$5,0),2),"") -> LRC | I103: Peregrine | J103: Mailchimp | L103: 221020 - LRC ADS_BG ER Peregrine Billable 13-2022 | M103: 015-22 | N103: 221020 - Peregrine - Mailchimp Essentials MC16642305.pdf
A104: 2022-10-31 | B104: NATIONAL BUS AVIA 10/28 PURCHASE WASHINGTON DC DEBIT CARD *7411 | C104: -52.5 | D104: =D103+Dissolution[[#This Row],[Amount]] -> 3540.9 | E104: AGG | F104: =IF(Dissolution[[#This Row],[Category]]="Beginning Balance",Dissolution[[#This Row],[Running Bal.]],IF(Dissolution[[#This Row],[Category]]="AGG",F103+Dissolution[[#This Row],[Amount]],OFFSET(F104,-1,0))) -> 3540.9 | H104: =IFERROR(INDEX([1]Lookup!$B$2:$C$5,MATCH(RIGHT(TRIM(Dissolution[[#This Row],[Description]]),4),[1]Lookup!$B$2:$B$5,0),2),"") -> LRC | I104: AGG | L104: 221201 - LRC ADS_BG ER Mastercard 15-2022 | M104: - | N104: 221028 - NBAA Affilliated Prof Membership 000430626.pdf
A105: 2022-11-01 | B105: Monthly Fee Business Adv Relationship | C105: -29.95 | D105: =D104+Dissolution[[#This Row],[Amount]] -> 3510.95 | E105: AGG | F105: =IF(Dissolution[[#This Row],[Category]]="Beginning Balance",Dissolution[[#This Row],[Running Bal.]],IF(Dissolution[[#This Row],[Category]]="AGG",F104+Dissolution[[#This Row],[Amount]],OFFSET(F105,-1,0))) -> 3510.95 | H105: =IFERROR(INDEX([1]Lookup!$B$2:$C$5,MATCH(RIGHT(TRIM(Dissolution[[#This Row],[Description]]),4),[1]Lookup!$B$2:$B$5,0),2),"") ->  | I105: AGG | M105: -
A106: 2022-11-02 | B106: PEREGRINE AVIONI DES:QUICKBOOKS ID:375020979 INDN:AVIAGLOBAL GROUP, LLC CO ID:1722616653 PPD | C106: 2000 | D106: =D105+Dissolution[[#This Row],[Amount]] -> 5510.95 | E106: AGG | F106: =IF(Dissolution[[#This Row],[Category]]="Beginning Balance",Dissolution[[#This Row],[Running Bal.]],IF(Dissolution[[#This Row],[Category]]="AGG",F105+Dissolution[[#This Row],[Amount]],OFFSET(F106,-1,0))) -> 5510.95 | H106: =IFERROR(INDEX([1]Lookup!$B$2:$C$5,MATCH(RIGHT(TRIM(Dissolution[[#This Row],[Description]]),4),[1]Lookup!$B$2:$B$5,0),2),"") ->  | I106: Peregrine
A107: 2022-11-14 | B107: STAMPS.COM 11/13 PURCHASE 855-608-2677 TX DEBIT CARD *7411 | C107: -17.99 | D107: =D106+Dissolution[[#This Row],[Amount]] -> 5492.96 | E107: AGG | F107: =IF(Dissolution[[#This Row],[Category]]="Beginning Balance",Dissolution[[#This Row],[Running Bal.]],IF(Dissolution[[#This Row],[Category]]="AGG",F106+Dissolution[[#This Row],[Amount]],OFFSET(F107,-1,0))) -> 5492.96 | H107: =IFERROR(INDEX([1]Lookup!$B$2:$C$5,MATCH(RIGHT(TRIM(Dissolution[[#This Row],[Description]]),4),[1]Lookup!$B$2:$B$5,0),2),"") -> LRC | I107: AGG | J107: Stamps | L107: 221201 - LRC ADS_BG ER Mastercard 15-2022 | M107: - | N107: 221114 - Stamps dot com.pdf
A108: 2022-11-21 | B108: MAILCHIMP *MISC 11/18 PURCHASE MAILCHIMP.COM GA DEBIT CARD *7411 | C108: -11.62 | D108: =D107+Dissolution[[#This Row],[Amount]] -> 5481.34 | E108: AGG | F108: =IF(Dissolution[[#This Row],[Category]]="Beginning Balance",Dissolution[[#This Row],[Running Bal.]],IF(Dissolution[[#This Row],[Category]]="AGG",F107+Dissolution[[#This Row],[Amount]],OFFSET(F108,-1,0))) -> 5481.34 | H108: =IFERROR(INDEX([1]Lookup!$B$2:$C$5,MATCH(RIGHT(TRIM(Dissolution[[#This Row],[Description]]),4),[1]Lookup!$B$2:$B$5,0),2),"") -> LRC | I108: AGG | J108: Mailchimp | L108: 221201 - LRC ADS_BG ER Mastercard 15-2022 | M108: - | N108: 221118 - AGG - Mailchimp Essentials MC17077641.pdf
A109: 2022-11-21 | B109: MailChimp 11/20 PURCHASE Atlanta GA DEBIT CARD *7411 | C109: -59 | D109: =D108+Dissolution[[#This Row],[Amount]] -> 5422.34 | E109: AGG | F109: =IF(Dissolution[[#This Row],[Category]]="Beginning Balance",Dissolution[[#This Row],[Running Bal.]],IF(Dissolution[[#This Row],[Category]]="AGG",F108+Dissolution[[#This Row],[Amount]],OFFSET(F109,-1,0))) -> 5422.34 | H109: =IFERROR(INDEX([1]Lookup!$B$2:$C$5,MATCH(RIGHT(TRIM(Dissolution[[#This Row],[Description]]),4),[1]Lookup!$B$2:$B$5,0),2),"") -> LRC | I109: Peregrine | J109: Mailchimp | L109: 221201 - LRC ADS_BG ER Peregrine Billable 14-2022 | M109: 017-22 | N109: 221120 - Peregrine - Mailchimp Essentials MC17092309.pdf
A110: 2022-11-21 | B110: INMOTIONHOSTING.C 11/20 PURCHASE 888-3214678 CA DEBIT CARD *7429 | C110: -119.99 | D110: =D109+Dissolution[[#This Row],[Amount]] -> 5302.35 | E110: AGG | F110: =IF(Dissolution[[#This Row],[Category]]="Beginning Balance",Dissolution[[#This Row],[Running Bal.]],IF(Dissolution[[#This Row],[Category]]="AGG",F109+Dissolution[[#This Row],[Amount]],OFFSET(F110,-1,0))) -> 5302.35 | H110: =IFERROR(INDEX([1]Lookup!$B$2:$C$5,MATCH(RIGHT(TRIM(Dissolution[[#This Row],[Description]]),4),[1]Lookup!$B$2:$B$5,0),2),"") -> FWC | I110: AGG | L110: 221201 - FWC ER Mastercard Dec-2022 | M110: - | N110: AGG - InMotion Hosting Receipt - IMH-314-144898-100.pdf
A111: 2022-11-28 | B111: INMOTIONHOSTING.C 11/25 PURCHASE 888-3214678 CA DEBIT CARD *7429 | C111: -479.85 | D111: =D110+Dissolution[[#This Row],[Amount]] -> 4822.5 | E111: AGG | F111: =IF(Dissolution[[#This Row],[Category]]="Beginning Balance",Dissolution[[#This Row],[Running Bal.]],IF(Dissolution[[#This Row],[Category]]="AGG",F110+Dissolution[[#This Row],[Amount]],OFFSET(F111,-1,0))) -> 4822.5 | H111: =IFERROR(INDEX([1]Lookup!$B$2:$C$5,MATCH(RIGHT(TRIM(Dissolution[[#This Row],[Description]]),4),[1]Lookup!$B$2:$B$5,0),2),"") -> FWC | I111: Peregrine | L111: 221201 - FWC ER Peregrine Billable EOY-2022 | M111: 018-22 | N111: Peregrine - InMotion Hosting - Receipt - IMH-414-1451828-5.pdf
A112: 2022-12-01 | B112: Monthly Fee Business Adv Relationship | C112: -29.95 | D112: =D111+Dissolution[[#This Row],[Amount]] -> 4792.55 | E112: AGG | F112: =IF(Dissolution[[#This Row],[Category]]="Beginning Balance",Dissolution[[#This Row],[Running Bal.]],IF(Dissolution[[#This Row],[Category]]="AGG",F111+Dissolution[[#This Row],[Amount]],OFFSET(F112,-1,0))) -> 4792.55 | H112: =IFERROR(INDEX([1]Lookup!$B$2:$C$5,MATCH(RIGHT(TRIM(Dissolution[[#This Row],[Description]]),4),[1]Lookup!$B$2:$B$5,0),2),"") ->  | I112: AGG | M112: -
A113: 2022-12-09 | B113: PEREGRINE AVIONI DES:QUICKBOOKS ID:375020979 INDN:AVIAGLOBAL GROUP, LLC CO ID:1722616653 PPD | C113: 2000 | D113: =D112+Dissolution[[#This Row],[Amount]] -> 6792.55 | E113: AGG | F113: =IF(Dissolution[[#This Row],[Category]]="Beginning Balance",Dissolution[[#This Row],[Running Bal.]],IF(Dissolution[[#This Row],[Category]]="AGG",F112+Dissolution[[#This Row],[Amount]],OFFSET(F113,-1,0))) -> 6792.55 | H113: =IFERROR(INDEX([1]Lookup!$B$2:$C$5,MATCH(RIGHT(TRIM(Dissolution[[#This Row],[Description]]),4),[1]Lookup!$B$2:$B$5,0),2),"") ->  | I113: Peregrine
A114: 2022-12-14 | B114: STAMPS.COM 12/13 PURCHASE 855-608-2677 TX DEBIT CARD *7411 | C114: -17.99 | D114: =D113+Dissolution[[#This Row],[Amount]] -> 6774.56 | E114: AGG | F114: =IF(Dissolution[[#This Row],[Category]]="Beginning Balance",Dissolution[[#This Row],[Running Bal.]],IF(Dissolution[[#This Row],[Category]]="AGG",F113+Dissolution[[#This Row],[Amount]],OFFSET(F114,-1,0))) -> 6774.56 | H114: =IFERROR(INDEX([1]Lookup!$B$2:$C$5,MATCH(RIGHT(TRIM(Dissolution[[#This Row],[Description]]),4),[1]Lookup!$B$2:$B$5,0),2),"") -> LRC | I114: AGG | J114: Stamps | L114: 221201 - LRC ADS_BG ER Mastercard 15-2022 | M114: - | N114: 221214 - Stamps dot com.pdf
A115: 2022-12-19 | B115: INMOTIONHOSTING.C 12/16 PURCHASE 888-3214678 CA DEBIT CARD *7429 | C115: -39.58 | D115: =D114+Dissolution[[#This Row],[Amount]] -> 6734.98 | E115: AGG | F115: =IF(Dissolution[[#This Row],[Category]]="Beginning Balance",Dissolution[[#This Row],[Running Bal.]],IF(Dissolution[[#This Row],[Category]]="AGG",F114+Dissolution[[#This Row],[Amount]],OFFSET(F115,-1,0))) -> 6734.98 | H115: =IFERROR(INDEX([1]Lookup!$B$2:$C$5,MATCH(RIGHT(TRIM(Dissolution[[#This Row],[Description]]),4),[1]Lookup!$B$2:$B$5,0),2),"") -> FWC | I115: AGG | L115: 221226 - FWC ER Mastercard EOY-2022 | M115: - | N115: 220220 - InMotion Hosting - IMH-314-144898-104.pdf
A116: 2022-12-19 | B116: MAILCHIMP *MISC 12/18 PURCHASE MAILCHIMP.COM GA DEBIT CARD *7411 | C116: -11.62 | D116: =D115+Dissolution[[#This Row],[Amount]] -> 6723.36 | E116: AGG | F116: =IF(Dissolution[[#This Row],[Category]]="Beginning Balance",Dissolution[[#This Row],[Running Bal.]],IF(Dissolution[[#This Row],[Category]]="AGG",F115+Dissolution[[#This Row],[Amount]],OFFSET(F116,-1,0))) -> 6723.36 | H116: =IFERROR(INDEX([1]Lookup!$B$2:$C$5,MATCH(RIGHT(TRIM(Dissolution[[#This Row],[Description]]),4),[1]Lookup!$B$2:$B$5,0),2),"") -> LRC | I116: AGG | J116: Mailchimp | L116: 221223 - LRC ADS_BG ER Mastercard 16-2022 | M116: - | N116: 221218 - AGG - Mailchimp Essentials MC17295205.pdf
A117: 2022-12-20 | B117: PEREGRINE AVIONI DES:QUICKBOOKS ID:375020979 INDN:AVIAGLOBAL GROUP, LLC CO ID:1722616653 PPD | C117: 7063.61 | D117: =D116+Dissolution[[#This Row],[Amount]] -> 13786.97 | E117: AGG | F117: =IF(Dissolution[[#This Row],[Category]]="Beginning Balance",Dissolution[[#This Row],[Running Bal.]],IF(Dissolution[[#This Row],[Category]]="AGG",F116+Dissolution[[#This Row],[Amount]],OFFSET(F117,-1,0))) -> 13786.97 | H117: =IFERROR(INDEX([1]Lookup!$B$2:$C$5,MATCH(RIGHT(TRIM(Dissolution[[#This Row],[Description]]),4),[1]Lookup!$B$2:$B$5,0),2),"") ->  | I117: Peregrine
A118: 2022-12-20 | B118: MailChimp 12/20 PURCHASE Atlanta GA DEBIT CARD *7411 | C118: -59 | D118: =D117+Dissolution[[#This Row],[Amount]] -> 13727.97 | E118: AGG | F118: =IF(Dissolution[[#This Row],[Category]]="Beginning Balance",Dissolution[[#This Row],[Running Bal.]],IF(Dissolution[[#This Row],[Category]]="AGG",F117+Dissolution[[#This Row],[Amount]],OFFSET(F118,-1,0))) -> 13727.97 | H118: =IFERROR(INDEX([1]Lookup!$B$2:$C$5,MATCH(RIGHT(TRIM(Dissolution[[#This Row],[Description]]),4),[1]Lookup!$B$2:$B$5,0),2),"") -> LRC | I118: Peregrine | J118: Mailchimp | L118: 221223 - LRC ADS_BG ER Peregrine Billable 17-2022 | M118: 004-23 | N118: 221220 - Peregrine - Mailchimp Essentials MC17309841.pdf
A119: 2022-12-22 | B119: TRANSFER AVIAGLOBAL GROUP, LL:ADS-B Global LLC Confirmation# 0273896038 | C119: -3300 | D119: =D118+Dissolution[[#This Row],[Amount]] -> 10427.97 | E119: AGG | F119: =IF(Dissolution[[#This Row],[Category]]="Beginning Balance",Dissolution[[#This Row],[Running Bal.]],IF(Dissolution[[#This Row],[Category]]="AGG",F118+Dissolution[[#This Row],[Amount]],OFFSET(F119,-1,0))) -> 10427.97 | H119: =IFERROR(INDEX([1]Lookup!$B$2:$C$5,MATCH(RIGHT(TRIM(Dissolution[[#This Row],[Description]]),4),[1]Lookup!$B$2:$B$5,0),2),"") -> 
A120: 2022-12-22 | B120: TRANSFER AVIAGLOBAL GROUP, LL:Forrest Colliver Confirmation# 0273906671 | C120: -3300 | D120: =D119+Dissolution[[#This Row],[Amount]] -> 7127.97 | E120: AGG | F120: =IF(Dissolution[[#This Row],[Category]]="Beginning Balance",Dissolution[[#This Row],[Running Bal.]],IF(Dissolution[[#This Row],[Category]]="AGG",F119+Dissolution[[#This Row],[Amount]],OFFSET(F120,-1,0))) -> 7127.97 | H120: =IFERROR(INDEX([1]Lookup!$B$2:$C$5,MATCH(RIGHT(TRIM(Dissolution[[#This Row],[Description]]),4),[1]Lookup!$B$2:$B$5,0),2),"") -> 
A121: 2022-12-22 | B121: Online Banking Transfer Conf# fr8bmzdeg; AERO BUSINESS DEVELOPEMENT LLC | C121: -3300 | D121: =D120+Dissolution[[#This Row],[Amount]] -> 3827.97 | E121: AGG | F121: =IF(Dissolution[[#This Row],[Category]]="Beginning Balance",Dissolution[[#This Row],[Running Bal.]],IF(Dissolution[[#This Row],[Category]]="AGG",F120+Dissolution[[#This Row],[Amount]],OFFSET(F121,-1,0))) -> 3827.97 | H121: =IFERROR(INDEX([1]Lookup!$B$2:$C$5,MATCH(RIGHT(TRIM(Dissolution[[#This Row],[Description]]),4),[1]Lookup!$B$2:$B$5,0),2),"") -> 
A122: 2022-12-23 | B122: TRANSFER AVIAGLOBAL GROUP, LL:Forrest Colliver Confirmation# 0281150631 | C122: -1549.3 | D122: =D121+Dissolution[[#This Row],[Amount]] -> 2278.67 | E122: AGG | F122: =IF(Dissolution[[#This Row],[Category]]="Beginning Balance",Dissolution[[#This Row],[Running Bal.]],IF(Dissolution[[#This Row],[Category]]="AGG",F121+Dissolution[[#This Row],[Amount]],OFFSET(F122,-1,0))) -> 2278.67 | H122: =IFERROR(INDEX([1]Lookup!$B$2:$C$5,MATCH(RIGHT(TRIM(Dissolution[[#This Row],[Description]]),4),[1]Lookup!$B$2:$B$5,0),2),"") -> 
A123: 2022-12-23 | B123: TRANSFER AVIAGLOBAL GROUP, LL:ADS-B Global LLC Confirmation# 1581367783 | C123: -70.62 | D123: =D122+Dissolution[[#This Row],[Amount]] -> 2208.05 | E123: AGG | F123: =IF(Dissolution[[#This Row],[Category]]="Beginning Balance",Dissolution[[#This Row],[Running Bal.]],IF(Dissolution[[#This Row],[Category]]="AGG",F122+Dissolution[[#This Row],[Amount]],OFFSET(F123,-1,0))) -> 2208.05 | H123: =IFERROR(INDEX([1]Lookup!$B$2:$C$5,MATCH(RIGHT(TRIM(Dissolution[[#This Row],[Description]]),4),[1]Lookup!$B$2:$B$5,0),2),"") -> 
A124: 2022-12-23 | B124: External transfer fee - 3 Day - 12/22/2022 Confirmation: 418383038 | C124: -1 | D124: =D123+Dissolution[[#This Row],[Amount]] -> 2207.05 | E124: AGG | F124: =IF(Dissolution[[#This Row],[Category]]="Beginning Balance",Dissolution[[#This Row],[Running Bal.]],IF(Dissolution[[#This Row],[Category]]="AGG",F123+Dissolution[[#This Row],[Amount]],OFFSET(F124,-1,0))) -> 2207.05 | H124: =IFERROR(INDEX([1]Lookup!$B$2:$C$5,MATCH(RIGHT(TRIM(Dissolution[[#This Row],[Description]]),4),[1]Lookup!$B$2:$B$5,0),2),"") ->  | I124: AGG
A125: 2022-12-23 | B125: External transfer fee - 3 Day - 12/22/2022 Confirmation: 418383332 | C125: -1 | D125: =D124+Dissolution[[#This Row],[Amount]] -> 2206.05 | E125: AGG | F125: =IF(Dissolution[[#This Row],[Category]]="Beginning Balance",Dissolution[[#This Row],[Running Bal.]],IF(Dissolution[[#This Row],[Category]]="AGG",F124+Dissolution[[#This Row],[Amount]],OFFSET(F125,-1,0))) -> 2206.05 | H125: =IFERROR(INDEX([1]Lookup!$B$2:$C$5,MATCH(RIGHT(TRIM(Dissolution[[#This Row],[Description]]),4),[1]Lookup!$B$2:$B$5,0),2),"") ->  | I125: AGG
A126: 2022-12-27 | B126: External transfer fee - Next Day - 12/23/2022 Confirmation: 418570494 | C126: -5 | D126: =D125+Dissolution[[#This Row],[Amount]] -> 2201.05 | E126: AGG | F126: =IF(Dissolution[[#This Row],[Category]]="Beginning Balance",Dissolution[[#This Row],[Running Bal.]],IF(Dissolution[[#This Row],[Category]]="AGG",F125+Dissolution[[#This Row],[Amount]],OFFSET(F126,-1,0))) -> 2201.05 | H126: =IFERROR(INDEX([1]Lookup!$B$2:$C$5,MATCH(RIGHT(TRIM(Dissolution[[#This Row],[Description]]),4),[1]Lookup!$B$2:$B$5,0),2),"") ->  | I126: AGG
A127: 2022-12-27 | B127: External transfer fee - 3 Day - 12/23/2022 Confirmation: 418577030 | C127: -1 | D127: =D126+Dissolution[[#This Row],[Amount]] -> 2200.05 | E127: AGG | F127: =IF(Dissolution[[#This Row],[Category]]="Beginning Balance",Dissolution[[#This Row],[Running Bal.]],IF(Dissolution[[#This Row],[Category]]="AGG",F126+Dissolution[[#This Row],[Amount]],OFFSET(F127,-1,0))) -> 2200.05 | H127: =IFERROR(INDEX([1]Lookup!$B$2:$C$5,MATCH(RIGHT(TRIM(Dissolution[[#This Row],[Description]]),4),[1]Lookup!$B$2:$B$5,0),2),"") ->  | I127: AGG
A128: 2023-01-03 | B128: OWL FOR THUNDERBI 01/02 PURCHASE WIESBADEN DEBIT CARD *7429 | C128: -10.7 | D128: =D127+Dissolution[[#This Row],[Amount]] -> 2189.35 | E128: New Company | F128: =IF(Dissolution[[#This Row],[Category]]="Beginning Balance",Dissolution[[#This Row],[Running Bal.]],IF(Dissolution[[#This Row],[Category]]="AGG",F127+Dissolution[[#This Row],[Amount]],OFFSET(F128,-1,0))) -> 2200.05 | H128: FWC | I128: AE | N128: 220102 - OWL invoice 3-47107.pdf
A129: 2023-01-03 | B129: Monthly Fee Business Adv Relationship | C129: -29.95 | D129: =D128+Dissolution[[#This Row],[Amount]] -> 2159.4 | E129: AGG | F129: =IF(Dissolution[[#This Row],[Category]]="Beginning Balance",Dissolution[[#This Row],[Running Bal.]],IF(Dissolution[[#This Row],[Category]]="AGG",F128+Dissolution[[#This Row],[Amount]],OFFSET(F129,-1,0))) -> 2170.1 | I129: AGG
A130: 2023-01-03 | B130: INTERNATIONAL TRANSACTION FEE 01/02 OWL FOR THUNDERBI WIESBADEN DEBIT CARD *7429 | C130: -0.32 | D130: =D129+Dissolution[[#This Row],[Amount]] -> 2159.08 | E130: New Company | F130: =IF(Dissolution[[#This Row],[Category]]="Beginning Balance",Dissolution[[#This Row],[Running Bal.]],IF(Dissolution[[#This Row],[Category]]="AGG",F129+Dissolution[[#This Row],[Amount]],OFFSET(F130,-1,0))) -> 2170.1 | H130: FWC | I130: AE | N130: 230103 - INTERNATIONAL TRANSACTION FEE OWL FOR THUNDERBI.pdf
A131: 2023-01-05 | B131: PEREGRINE AVIONI DES:QUICKBOOKS ID:375020979 INDN:AVIAGLOBAL GROUP, LLC CO ID:1722616653 PPD | C131: 441.97 | D131: =D130+Dissolution[[#This Row],[Amount]] -> 2601.05 | E131: AGG | F131: =IF(Dissolution[[#This Row],[Category]]="Beginning Balance",Dissolution[[#This Row],[Running Bal.]],IF(Dissolution[[#This Row],[Category]]="AGG",F130+Dissolution[[#This Row],[Amount]],OFFSET(F131,-1,0))) -> 2612.07 | I131: Peregrine
A132: 2023-01-17 | B132: STAMPS.COM 01/14 PURCHASE 855-608-2677 TX DEBIT CARD *7411 | C132: -17.99 | D132: =D131+Dissolution[[#This Row],[Amount]] -> 2583.06 | E132: New Company | F132: =IF(Dissolution[[#This Row],[Category]]="Beginning Balance",Dissolution[[#This Row],[Running Bal.]],IF(Dissolution[[#This Row],[Category]]="AGG",F131+Dissolution[[#This Row],[Amount]],OFFSET(F132,-1,0))) -> 2612.07 | H132: LRC | I132: AE
A133: 2023-01-18 | B133: MICHAEL L STUCK C 01/17 PURCHASE SCOTTSDALE AZ DEBIT CARD *0975 | C133: -625 | D133: =D132+Dissolution[[#This Row],[Amount]] -> 1958.06 | E133: AGG | F133: =IF(Dissolution[[#This Row],[Category]]="Beginning Balance",Dissolution[[#This Row],[Running Bal.]],IF(Dissolution[[#This Row],[Category]]="AGG",F132+Dissolution[[#This Row],[Amount]],OFFSET(F133,-1,0))) -> 1987.07 | H133: HEA | I133: AGG
A134: 2023-01-19 | B134: MAILCHIMP *MISC 01/18 PURCHASE MAILCHIMP.COM GA DEBIT CARD *7411 | C134: -13.73 | D134: =D133+Dissolution[[#This Row],[Amount]] -> 1944.33 | E134: New Company | F134: =IF(Dissolution[[#This Row],[Category]]="Beginning Balance",Dissolution[[#This Row],[Running Bal.]],IF(Dissolution[[#This Row],[Category]]="AGG",F133+Dissolution[[#This Row],[Amount]],OFFSET(F134,-1,0))) -> 1987.07 | H134: LRC | I134: AE | N134: 230118 - AE - Mailchimp Essentials MC17507446.pdf
A135: 2023-01-20 | B135: Mailchimp 01/20 PURCHASE Atlanta GA DEBIT CARD *7411 | C135: -69 | D135: =D134+Dissolution[[#This Row],[Amount]] -> 1875.33 | E135: New Company | F135: =IF(Dissolution[[#This Row],[Category]]="Beginning Balance",Dissolution[[#This Row],[Running Bal.]],IF(Dissolution[[#This Row],[Category]]="AGG",F134+Dissolution[[#This Row],[Amount]],OFFSET(F135,-1,0))) -> 1987.07 | H135: LRC | I135: Peregrine | M135: 002-23 | N135: 230120 - Peregrine - Mailchimp Essentials MC17521714.pdf
A136: 2023-01-24 | B136: ELEMENTOR 01/24 PURCHASE WILMINGTON DE DEBIT CARD *7429 | C136: -49 | D136: =D135+Dissolution[[#This Row],[Amount]] -> 1826.33 | E136: New Company | F136: =IF(Dissolution[[#This Row],[Category]]="Beginning Balance",Dissolution[[#This Row],[Running Bal.]],IF(Dissolution[[#This Row],[Category]]="AGG",F135+Dissolution[[#This Row],[Amount]],OFFSET(F136,-1,0))) -> 1987.07 | H136: FWC | I136: Peregrine | M136: 004-23 | N136: 230124 - Elementor Peregrine 12843418.pdf
A137: 2023-01-25 | B137: REALLY-SIMPLE-SSL 01/24 PURCHASE GRONINGEN DEBIT CARD *7429 | C137: -23.2 | D137: =D136+Dissolution[[#This Row],[Amount]] -> 1803.13 | E137: New Company | F137: =IF(Dissolution[[#This Row],[Category]]="Beginning Balance",Dissolution[[#This Row],[Running Bal.]],IF(Dissolution[[#This Row],[Category]]="AGG",F136+Dissolution[[#This Row],[Amount]],OFFSET(F137,-1,0))) -> 1987.07 | H137: FWC | I137: Peregrine | M137: 004-23 | N137: 230124 - Really Simple SSL Peregrine invoice 2023-1984.pdf
A138: 2023-01-25 | B138: COMPLIANZ-GDPR-PR 01/25 PURCHASE GRONINGEN DEBIT CARD *7429 | C138: -45 | D138: =D137+Dissolution[[#This Row],[Amount]] -> 1758.13 | E138: New Company | F138: =IF(Dissolution[[#This Row],[Category]]="Beginning Balance",Dissolution[[#This Row],[Running Bal.]],IF(Dissolution[[#This Row],[Category]]="AGG",F137+Dissolution[[#This Row],[Amount]],OFFSET(F138,-1,0))) -> 1987.07 | H138: FWC | I138: Peregrine | M138: 004-23 | N138: 230125 - Complianz Peregrine invoice 2023-0963.pdf
A139: 2023-01-25 | B139: INTERNATIONAL TRANSACTION FEE 01/25 COMPLIANZ-GDPR-PR GRONINGEN DEBIT CARD *7429 | C139: -1.35 | D139: =D138+Dissolution[[#This Row],[Amount]] -> 1756.78 | E139: New Company | F139: =IF(Dissolution[[#This Row],[Category]]="Beginning Balance",Dissolution[[#This Row],[Running Bal.]],IF(Dissolution[[#This Row],[Category]]="AGG",F138+Dissolution[[#This Row],[Amount]],OFFSET(F139,-1,0))) -> 1987.07 | H139: FWC | I139: Peregrine | M139: 004-23 | N139: 230125 - INTERNATIONAL TRANSACTION FEE COMPLIANZ-GDPR-PR.pdf
A140: 2023-01-25 | B140: INTERNATIONAL TRANSACTION FEE 01/24 REALLY-SIMPLE-SSL GRONINGEN DEBIT CARD *7429 | C140: -0.7 | D140: =D139+Dissolution[[#This Row],[Amount]] -> 1756.08 | E140: New Company | F140: =IF(Dissolution[[#This Row],[Category]]="Beginning Balance",Dissolution[[#This Row],[Running Bal.]],IF(Dissolution[[#This Row],[Category]]="AGG",F139+Dissolution[[#This Row],[Amount]],OFFSET(F140,-1,0))) -> 1987.07 | H140: FWC | I140: Peregrine | M140: 004-23 | N140: 230125 - INTERNATIONAL TRANSACTION FEE REALLY-SIMPLE-SSL.pdf
A141: 2023-02-01 | B141: Monthly Fee Business Adv Relationship | C141: -29.95 | D141: =D140+Dissolution[[#This Row],[Amount]] -> 1726.13 | E141: New Company | F141: =IF(Dissolution[[#This Row],[Category]]="Beginning Balance",Dissolution[[#This Row],[Running Bal.]],IF(Dissolution[[#This Row],[Category]]="AGG",F140+Dissolution[[#This Row],[Amount]],OFFSET(F141,-1,0))) -> 1987.07 | H141: LRC | I141: AGG
A142: 2023-02-14 | B142: STAMPS.COM 02/13 PURCHASE 855-608-2677 TX DEBIT CARD *7411 | C142: -17.99 | D142: =D141+Dissolution[[#This Row],[Amount]] -> 1708.14 | E142: New Company | F142: =IF(Dissolution[[#This Row],[Category]]="Beginning Balance",Dissolution[[#This Row],[Running Bal.]],IF(Dissolution[[#This Row],[Category]]="AGG",F141+Dissolution[[#This Row],[Amount]],OFFSET(F142,-1,0))) -> 1987.07 | H142: LRC | I142: AE
A143: 2023-02-15 | B143: PEREGRINE AVIONI DES:QUICKBOOKS ID:375020979 INDN:AVIAGLOBAL GROUP, LLC CO ID:1722616653 PPD | C143: 2000 | D143: =D142+Dissolution[[#This Row],[Amount]] -> 3708.14 | E143: New Company | F143: =IF(Dissolution[[#This Row],[Category]]="Beginning Balance",Dissolution[[#This Row],[Running Bal.]],IF(Dissolution[[#This Row],[Category]]="AGG",F142+Dissolution[[#This Row],[Amount]],OFFSET(F143,-1,0))) -> 1987.07 | I143: Peregrine
A144: 2023-02-21 | B144: MAILCHIMP *MISC 02/18 PURCHASE MAILCHIMP.COM GA DEBIT CARD *7411 | C144: -13.73 | D144: =D143+Dissolution[[#This Row],[Amount]] -> 3694.41 | E144: New Company | F144: =IF(Dissolution[[#This Row],[Category]]="Beginning Balance",Dissolution[[#This Row],[Running Bal.]],IF(Dissolution[[#This Row],[Category]]="AGG",F143+Dissolution[[#This Row],[Amount]],OFFSET(F144,-1,0))) -> 1987.07 | H144: LRC | I144: AE
A145: 2023-02-21 | B145: Mailchimp 02/20 PURCHASE Atlanta GA DEBIT CARD *7411 | C145: -69 | D145: =D144+Dissolution[[#This Row],[Amount]] -> 3625.41 | E145: New Company | F145: =IF(Dissolution[[#This Row],[Category]]="Beginning Balance",Dissolution[[#This Row],[Running Bal.]],IF(Dissolution[[#This Row],[Category]]="AGG",F144+Dissolution[[#This Row],[Amount]],OFFSET(F145,-1,0))) -> 1987.07 | H145: LRC | I145: Peregrine | M145: 002-23
A146: 2023-03-01 | B146: Monthly Fee Business Adv Relationship | C146: -29.95 | D146: =D145+Dissolution[[#This Row],[Amount]] -> 3595.46 | E146: New Company | F146: =IF(Dissolution[[#This Row],[Category]]="Beginning Balance",Dissolution[[#This Row],[Running Bal.]],IF(Dissolution[[#This Row],[Category]]="AGG",F145+Dissolution[[#This Row],[Amount]],OFFSET(F146,-1,0))) -> 1987.07 | I146: AE
A147: 2023-03-08 | B147: PEREGRINE AVIONI DES:QUICKBOOKS ID:375020979 INDN:AVIAGLOBAL GROUP, LLC CO ID:1722616653 PPD | C147: 2069 | D147: =D146+Dissolution[[#This Row],[Amount]] -> 5664.46 | E147: New Company | F147: =IF(Dissolution[[#This Row],[Category]]="Beginning Balance",Dissolution[[#This Row],[Running Bal.]],IF(Dissolution[[#This Row],[Category]]="AGG",F146+Dissolution[[#This Row],[Amount]],OFFSET(F147,-1,0))) -> 1987.07 | I147: Peregrine
A148: 2023-03-15 | B148: STAMPS.COM 02/13 PURCHASE 855-608-2677 TX DEBIT CARD *7411 | C148: -17.99 | D148: =D147+Dissolution[[#This Row],[Amount]] -> 5646.47 | E148: New Company | F148: =IF(Dissolution[[#This Row],[Category]]="Beginning Balance",Dissolution[[#This Row],[Running Bal.]],IF(Dissolution[[#This Row],[Category]]="AGG",F147+Dissolution[[#This Row],[Amount]],OFFSET(F148,-1,0))) -> 1987.07 | H148: LRC | I148: AE
A149: 2023-03-16 | B149: MONSTERINSIGHTS W 03/16 PURCHASE PALM BEACH GA FL DEBIT CARD *7429 | C149: -199 | D149: =D148+Dissolution[[#This Row],[Amount]] -> 5447.47 | E149: New Company | F149: =IF(Dissolution[[#This Row],[Category]]="Beginning Balance",Dissolution[[#This Row],[Running Bal.]],IF(Dissolution[[#This Row],[Category]]="AGG",F148+Dissolution[[#This Row],[Amount]],OFFSET(F149,-1,0))) -> 1987.07 | H149: FWC | I149: Peregrine
A150: 2023-03-16 | B150: AIOSEO - ORDER 16 03/16 PURCHASE PALM BEACH GA FL DEBIT CARD *7429 | C150: -99 | D150: =D149+Dissolution[[#This Row],[Amount]] -> 5348.47 | E150: New Company | F150: =IF(Dissolution[[#This Row],[Category]]="Beginning Balance",Dissolution[[#This Row],[Running Bal.]],IF(Dissolution[[#This Row],[Category]]="AGG",F149+Dissolution[[#This Row],[Amount]],OFFSET(F150,-1,0))) -> 1987.07 | H150: FWC | I150: Peregrine
A151: 2023-03-20 | B151: MAILCHIMP *MISC 03/18 PURCHASE MAILCHIMP.COM GA DEBIT CARD *7411 | C151: -13.73 | D151: =D150+Dissolution[[#This Row],[Amount]] -> 5334.74 | E151: New Company | F151: =IF(Dissolution[[#This Row],[Category]]="Beginning Balance",Dissolution[[#This Row],[Running Bal.]],IF(Dissolution[[#This Row],[Category]]="AGG",F150+Dissolution[[#This Row],[Amount]],OFFSET(F151,-1,0))) -> 1987.07 | H151: LRC | I151: AE | N151: 230218 - AE - Mailchimp Essentials MC17931934.pdf
A152: 2023-03-20 | B152: Mailchimp 03/20 PURCHASE Atlanta GA DEBIT CARD *7411 | C152: -69 | D152: =D151+Dissolution[[#This Row],[Amount]] -> 5265.74 | E152: New Company | F152: =IF(Dissolution[[#This Row],[Category]]="Beginning Balance",Dissolution[[#This Row],[Running Bal.]],IF(Dissolution[[#This Row],[Category]]="AGG",F151+Dissolution[[#This Row],[Amount]],OFFSET(F152,-1,0))) -> 1987.07 | H152: LRC | I152: Peregrine | M152: 005-23 | N152: 230320 - Peregrine - Mailchimp Essentials MC17945494.pdf
A153: 2023-03-22 | B153: PEREGRINE AVIONI DES:QUICKBOOKS ID:375020979 INDN:AVIAGLOBAL GROUP, LLC CO ID:1722616653 PPD | C153: 2476.25 | D153: =D152+Dissolution[[#This Row],[Amount]] -> 7741.99 | E153: New Company | F153: =IF(Dissolution[[#This Row],[Category]]="Beginning Balance",Dissolution[[#This Row],[Running Bal.]],IF(Dissolution[[#This Row],[Category]]="AGG",F152+Dissolution[[#This Row],[Amount]],OFFSET(F153,-1,0))) -> 1987.07 | I153: Peregrine
B154: State of AZ Dissolution Fee | C154: -35 | D154: =D153+Dissolution[[#This Row],[Amount]] -> 7706.99 | E154: AGG | F154: =IF(Dissolution[[#This Row],[Category]]="Beginning Balance",Dissolution[[#This Row],[Running Bal.]],IF(Dissolution[[#This Row],[Category]]="AGG",F153+Dissolution[[#This Row],[Amount]],OFFSET(F154,-1,0))) -> 1952.07 | I154: AGG
